{"text_format":"1","workbook":"xlsx","n_sheets":23,"sheets":["Cover Page","Facility Info","Operational Data","Operational Summary","Perf. Form 1","Energy Form 1","Permit Compliance","Improvements","Public Liasion","CO2 N2O","Residues","Water","Air (periodic)","Air (CEMS)","HCl","SO2","NOx","TOC","Particulates","CO 0.5 hourly","CO 95% 10 min","NH3","Template changes log"],"not_rendered":{"charts":8,"images":3,"macros":1,"external_links":0,"defined_names":23,"comments":0,"pivot_tables":0},"unopened":[],"bounds":{"document_bytes":16777216,"sheet_cells":100000,"rows_first":2000,"rows_last":500,"rows_between":2000,"halvings":0,"cell_chars":16384,"cell_head_chars":4096},"cells_cut":0,"cells_raw":0,"read":"whole","date_system":"1900"}

{"sheet":"Cover Page","index":0,"n_rows":53,"n_cols":11,"rows_kept":53,"cut":false,"hidden":false,"merged":[[48,2,48,3],[48,6,48,8],[52,2,52,3],[36,1,36,8],[40,2,40,8],[42,2,42,4],[44,2,44,4],[46,2,46,3],[46,6,46,8],[13,10,18,12],[34,1,34,8],[0,3,5,6],[7,1,23,8],[28,1,28,8],[30,1,30,8],[32,1,32,8]]}
[null,null,null,{"$error":"#VALUE!"}]
[null,null,null,null,null,null,null,null,null,null,"Template version 25.1a (for incinerators) - 27/11/25"]
[]
[null,null,null,null,null,null,null,null,null,null,"Note that there is another version of this template available for co-incinerators"]
[]
[]
[]
[null,{"$error":"#VALUE!"}]
[]
[]
[]
[]
[null,null,null,null,null,null,null,null,null,null,"Notes:"]
[null,null,null,null,null,null,null,null,null,null,"This template may require adjustments by individual operators to meet specific reporting requirements as defined in the site Permit(s)"]
[]
[]
[]
[]
[]
[]
[]
[]
[]
[]
[]
[]
[]
[]
[null,"Annual Performance Report 2025"]
[]
[null,"Permit EPR/WP3239SJ"]
[]
[null,"Tyseley Energy from Waste Plant"]
[]
[]
[]
[null,"VEOLIA ES Birmingham Limited"]
[]
[null,"Year:",2025]
[]
[null,"Address:","James Road, Tyseley, Birmingham, B11 2BA"]
[]
[null,"Tel: ","0203 9567 3740"]
[]
[null,"Email: ","christine.skaramaga@veolia.com"]
[]
[null,"Prepared by:","Christine Skaramaga",null,null,"Position:","Senior Environmental Engineer"]
[]
[null,"Approved by:","Paull Collier",null,null,"Position:","Plant Manager"]
[]
[null,"Version:",1]
[]
[null,"Issue Date:","2026-01-31"]

{"sheet":"Facility Info","index":1,"n_rows":22,"n_cols":11,"rows_kept":22,"cut":false,"hidden":false,"merged":[[4,0,17,8],[21,0,53,8],[4,10,13,13],[21,10,30,13]]}
[{"$f":"+'Cover Page'!$B$29","v":"Annual Performance Report 2025"},null,null,null,{"$f":"+'Cover Page'!$B$33","v":"Tyseley Energy from Waste Plant"}]
[]
["Plant Description and Design",null,null,null,null,null,null,null,null,null,"Notes:"]
[]
["The main purpose of the activity carried out at this facility is to incinerate, primarily, Municipal Solid Waste (MSW) as defined by EWC 20 03 01, recovering energy in the form of steam and electricity generating 27 MW for export to the National Grid. \n\nThe permit covers the site and the entire incineration process which includes all incineration lines, waste reception and storage, waste-fuel and air supply systems, boilers, facilities for the treatment of exhaust gases, on-site facilities for handling and storage of residues and operations, recording and monitoring conditions.\n\n",null,null,null,null,null,null,null,null,null,"Include summary of plant design, design capacity, no. of combustion lines, electrical and heat capacity and any other general information that describes the facility, its location and purpose "]
[]
[]
[]
[]
[]
[]
[]
[]
[]
[]
[]
[]
[]
[]
["Summary of Operational Processes and Procedures"]
[]
["This facility consists of two incineration lines, each capable of processing approximately 23.5 tonnes per hour, which takes approximately 350,000 tonnes of Birmingham’s waste each year but this, is dependent on two factors: actual operating hours and calorific value of the waste being burnt.\n\nThe third incineration line processes clinical waste and other designated hazardous wastes (CWI) at a nominal rate of 600kg/hour.\nAll emissions to air from the two 80m high chimneys are controlled to meet the emission limits included in the Environmental Permit. The flue gases released into the atmosphere are continuously monitored for Particulate Matter (total), TOC, Hydrogen Chloride, Oxides of Nitrogen, Carbon Monoxide, Ammonia,  Sulphur Dioxide, Carbon Dioxide, Nitrous Oxide and flue gas flow.         \nBi-annual check monitoring of this equipment is carried out by approved contractors using indepent extractive sampling methods, at which time emissions of Heavy Metals, Dioxins and other substances are also monitored.\nThe Continious Emissions Monitoring equipment (CEMs) was in service during 2023 for 100% of the plant operating time. This equipment is stringently monitored with routine calibration checks and is standardised to BS EN14181:2004. ",null,null,null,null,null,null,null,null,null,"Include summary of key processes and procedures such as (but not limited to); waste reception, control rooms, grate, bed and boiler, energy & heat  generation, cooling systems, residue management, emission controls, health and safety systems, maintenance"]

{"sheet":"Operational Data","index":2,"n_rows":65,"n_cols":10,"rows_kept":65,"cut":false,"hidden":false,"merged":[[4,9,23,9],[25,9,29,9],[53,0,57,0],[34,1,39,1],[3,1,3,2],[10,1,22,1],[26,1,28,1],[7,2,7,3]]}
[{"$f":"+'Cover Page'!$B$29","v":"Annual Performance Report 2025"},null,null,null,{"$f":"+'Cover Page'!$B$33","v":"Tyseley Energy from Waste Plant"}]
[]
["Operational Data"]
["Plant Size:",440500,null,"tonnes pa",null,null,null,null,null,"Notes:"]
["Nominal net thermal input:",null,"MWth",null,null,null,null,null,null,"* Export capacity = nominal generation capacity at the generator terminals minus nominal parasitic load.\n\n** CHP and district heating plants only - put N/A if no heat export.\n\n***  Combusted tonnage = tonnes delivered in period + (tonnes in bunker at start of period – tonnes in bunker at end of period), or equivalent calculation depending on plant type\n\n**** Availability Definition: The availability of a line is to be calculated by the number of hours the line reported Continuously Monitored emission levels to the Regulator through the calendar year divided by the total number of hours in that year. \n\nThe overall plant availability is calculated as the mean of all lines in the plant. For clarity this includes periods of abnormal operation.  \n\nRationale: The primary function of an Energy from Waste facility is the disposal of waste. It follows therefore that the availability of a plant is determined by the period of time a facility spends undertaking this activity.\n\n*****NCV of waste: This should be completed for all plants which have a boiler. Calculate using total thermal power produced by boiler/boiler efficiency, or other suitable calculation. \n"]
["Nominal electrical export capacity*:",30,"MWe"]
["Nominal heat export capacity**:",null,"MWth"]
["No. of combustion lines:",2,"No. of steam turbines:",null,1]
[]
["Waste types received","Unit","Q1","Q2","Q3","Q4","Year Total","%"]
["Household / Local Authority","tonnes",83453,81816,75452,88805,{"$f":"SUM(C11:F11)","v":329526},{"$f":"IF(G11>0,G11/$G$21,\"-\")","v":0.93678946784890882}]
["Commercial & Industrial ",null,132,84,76,163,{"$f":"SUM(C12:F12)","v":455},1.2934918879580169E-3]
["Hazardous ",null,610,619,612,689,2530,7.1923834649094132E-3]
["Clinical",null,967,945,747,1486,4145,1.1783568957331824E-2]
["Waste wood (biomass) ",null,null,null,null,null,0,"-"]
["Refuse Derived Fuel (incl. SRF) - H'hold/LA",null,7241,3969,342,3553,{"$f":"SUM(C16:F16)","v":15105},4.294108784089197E-2]
["Refuse Derived Fuel (incl. SRF) - C&I",null,null,null,null,null,0,"-"]
["Other [Please specify]",null,null,null,null,null,0,"-"]
["Other [Please specify]",null,null,null,null,null,0,"-"]
["Other [Please specify]",null,null,null,null,null,0,"-"]
["Total waste received",null,{"$f":"SUM(C11:C20)","v":92403},{"$f":"SUM(D11:D20)","v":87433},{"$f":"SUM(E11:E20)","v":77229},{"$f":"SUM(F11:F20)","v":94696},351761]
["Rejected Waste ",null,null,null,null,null,{"$f":"SUM(C22:F22)","v":0},{"$f":"IF(G22>0,G22/$G$21,\"-\")","v":"-"}]
["Unprocessed waste transferred out",null,null,null,null,null,{"$f":"SUM(C23:F23)","v":0},{"$f":"IF(G23>0,G23/$G$21,\"-\")","v":"-"}]
["Total waste combusted ***",null,93900,90674,78816,96453,{"$f":"SUM(C24:F24)","v":359843}]
[]
["Energy Usage / Export","Unit","Q1","Q2","Q3","Q4","Year Total","KWh/te",null,"Password for protected cells\nA password has been set to prevent accidental  editing of cells with formulae. \nIf you still need to make an edit for some reason then the password = 1234"]
["Power generated at generator terminals","MWh",51810,53279,133,55208,{"$f":"SUM(C27:F27)","v":160430},{"$f":"IF(G27>0,G27*1000/$G$24,\"-\")","v":445.83332175420946}]
["Power exported to grid and other external user(s)",null,45414,46130,156,47188,{"$f":"SUM(C28:F28)","v":138888},{"$f":"IF(G28>0,G28*1000/$G$24,\"-\")","v":385.9683250751022}]
["Power imported",null,0,0,7860.8,492,8352.7999999999993,{"$f":"IF(G29>0,G29*1000/$G$24,\"-\")","v":23.212345383959114}]
["Indicative parasitic load","%",{"$f":"IF(C27>0,(C27-C28)/C27,\"-\")","v":0.12345107122177186},{"$f":"IF(D27>0,(D27-D28)/D27,\"-\")","v":0.13418044632969839},-0.17293233082706766,0.14526880162295319,{"$f":"IF(G27>0,1-G28/(G27+G29),\"-\")","v":0.17711994350135196}]
["Thermal Energy Exported **",null,null,null,null,null,{"$f":"SUM(C31:F31)","v":0},{"$f":"IF(G31>0,G31*1000/$G$24,\"-\")","v":"-"}]
["R1 value (if applicable)","R1","-","-","-","-",0.6]
[]
["Waste Disposal & Recovery","Unit","Q1","Q2","Q3","Q4","Year Total","% inputs"]
["APC Residues - produced","tonnes",2136.56,2173.62,2031.82,2301.4,{"$f":"SUM(C35:F35)","v":8643.4},{"$f":"IF(G35>0,G35/$G$24,\"-\")","v":2.4019919798356503E-2}]
["IBA - produced",null,19625.52,20190.16,15718.06,19868,75401.739999999991,{"$f":"IF(G36>0,G36/$G$24,\"-\")","v":0.20954066078817704}]
["Metals recycling",null,848.76,841.48,1030.76,984.87,{"$f":"SUM(C37:F37)","v":3705.87},1.0298574656169495E-2]
["Wooden Packaging",null,17.72,19.739999999999998,7.86,22.44,{"$f":"SUM(C38:F38)","v":67.759999999999991},1.8830434383884081E-4]
["Interceptor Waste",null,0,0,139.66,0,139.66,3.8811370514363206E-4]
["Other",null,0,0,0,0,0,"-"]
[]
["Raw Material Usage","Unit","Q1","Q2","Q3","Q4","Year Total","Qty./te"]
["Mains Water","ltrs",42248,40809,35379,43526,{"$f":"SUM(C43:F43)","v":161962},{"$f":"IF(G43>0,G43/$G$24,\"-\")","v":0.45009073401455635}]
["Other Water","ltrs",null,null,null,null,0,{"$f":"IF(G44>0,G44/$G$24,\"-\")","v":"-"}]
["Ammonia","kgs",179600,111100,150900,123300,564900,1.5698512962597577]
["Urea","kgs",null,null,null,null,{"$f":"SUM(C46:F46)","v":0},"-"]
["Activated Carbon","kgs",46500,48800,31600,37900,164800,0.45797750685715716]
["Lime / hydrated lime","kgs",588000,562000,471000,544000,2165000,6.0165127569523378]
["Fuel oil","ltrs",289630,325200,305736,368391,1288957,3.5819982603524316]
["Gas","m3",null,null,null,null,0,"-"]
["Other",null,null,null,null,null,0,"-"]
[]
["Summary ","Line/Unit","Q1","Q2","Q3","Q4","Year Total",null,"Hrs in year "]
["Availability of waste combustion by line, hrs ****",1,2058.5,2019,1854,2152,{"$f":"SUM(C54:F54)","v":8083.5},{"$f":"+G54/$I$54","v":0.92277397260273974},8760,"Change this figure to 8784 in a leap year"]
[null,2,2043.5,2038.5,1624,2114.5,7820.5,{"$f":"+G55/$I$54","v":0.89275114155251145}]
[null,3,null,null,null,null,0,0]
[null,4,null,null,null,null,0,0]
[null,5,null,null,null,null,{"$f":"SUM(C58:F58)","v":0},0]
["Hours of turbine operations, hrs",1,1875,2184,41,2122,6222,0.71027397260273972]
["Hours of turbine operations, hrs",2,null,null,null,null,0,0]
["Hours of heat / steam export**","hours",null,null,null,null,0,{"$f":"IF(B61>0,G60/I54,\"n/a\")","v":0}]
["Net calorific value of waste*****","MJ/kg"]
["Abnormal operation events","qty.",null,null,null,null,0,{"$f":"IF(G63>0,\"yes\",\"no\")","v":"no"}]
["Abnormal operation duration","hours",null,null,null,null,0,{"$f":"+(G64)/I54","v":0}]
["Permit Breaches","qty.",null,null,null,null,0,{"$f":"IF(G65>0,\"yes\",\"no\")","v":"no"}]

{"sheet":"Operational Summary","index":3,"n_rows":39,"n_cols":11,"rows_kept":39,"cut":false,"hidden":false,"merged":[[29,10,42,13],[4,0,26,8],[4,10,13,13],[28,1,28,8],[29,2,29,8],[30,2,30,8],[31,2,31,8],[32,2,32,8],[33,2,33,8],[34,2,34,8],[35,2,35,8],[36,2,36,8],[37,2,37,8],[38,2,38,8],[44,2,44,8],[39,2,39,8],[40,2,40,8],[41,2,41,8],[42,2,42,8],[43,2,43,8]]}
[{"$f":"+'Cover Page'!$B$29","v":"Annual Performance Report 2025"},null,null,null,{"$f":"+'Cover Page'!$B$33","v":"Tyseley Energy from Waste Plant"}]
[]
["Summary of Plant Operations and Maintenance during the reporting year",null,null,null,null,null,null,null,null,null,"Notes:"]
[]
["Annual outage and common outage\nNTD in various areas of the furnace & boiler\nFurnace pressure parts overhaul and refractory repairs/tiles replacement\nSuperheater pressure parts and tubes replaced\nDrum internal repairs\nGrate overhaul\nID & FD fans servicing\nBaghouse inspection, general condition of plenum chambers, pulse air gaskets & door seals replaced\nReplacement of flash bank air heater elements\nStack inspections\nC14 stabbing flanges installed and analysers\nCalibrations of site instrumentation\nReactor internal cleaning\nStructural steelwork replaced and ducting to AD modified\nNew ID fan transformer\nFCD platework replacement\nExternal inspection of stack assembly and internal surveillance\n3.3kV Switchboard new ID fan trip settings installed following transformer replacement\nResidue cranes, installation of new long travel and hoist inverters\nDCS/HMI service/inspection carried out, replacement of obsolete hardware parts\nCommon water system feed pump and motor replaced\n132kV transformer, inspection and service of the transformer and tap changer\nTurbine, gearbox, generator major outage\nTurbine control valve overhaul, inclusding new bushes, governor replacement, inlet nozzle repairs, diaphragm repairs, casing and split line repairs, accumulator overhaul, installation of 5 local transmitters and gauges to lube oil system, rotor balance, turbine bleed valves overhaul, alignment check\nGenerator cryogenic cleaning, cooler element overhaul, exciter diodes replacement, bearing inspections, lube oil filtreation programme",null,null,null,null,null,null,null,null,null,"Include summary of key operational and/or maintenance activity undertaken in the year, such as any major component upgrades and/or replacements "]
[]
[]
[]
[]
[]
[]
[]
[]
[]
[]
[]
[]
[]
[]
[]
[]
[]
[]
[]
[]
[]
[]
[]
[{"$f":"+'Cover Page'!C39","v":2025},"Plant shut-downs"]
["Start date","End date","Reason for shut-down",null,null,null,null,null,null,null,"Provide a very brief reason for plant shut-down e.g. \"Shut-down prior to major outage\"; \"Emergency shut-down due to boiler tube leak\". All emergency shut-downs must be listed (irrespective of whether or not they were required to be reported to the EA). \n\nThere is no need to include periods of hot-standby here (e.g. to clear feed chute hopper blockages).\n\nFor clinical waste incinerators which require regular shut-downs for boiler cleaning, there is no need to record these here (only those prior to major outages, and emergency shut-downs). "]
["2025-01-06","2025-01-08","A1 & A2 Shut down for turbine work & grates"]
["2025-01-13","2025-01-13","A1 & A2 Shut down for turbine bearing"]
["2025-01-16","2025-01-16","A1 & A2 Shut down for turbine bearing"]
["2025-03-05","2025-04-05","A1 & A2 Shut down crane issues"]
["2025-04-05","2025-04-08","A1 Shut down for SH tube leak & grate repairs"]
["2025-06-22","2025-06-25","A2 Shut down for furnace tube leak"]
["2025-06-27","2025-07-13","A1 Shut down for annual outage"]
["2025-07-01","2025-07-21","A2 Shut down for annual outage"]
["2025-11-10","2025-11-12","A2 Shut down for grate repairs"]

{"sheet":"Perf. Form 1","index":4,"n_rows":54,"n_cols":10,"rows_kept":54,"cut":false,"hidden":false,"merged":[[47,0,47,1],[49,0,49,9],[50,0,51,9],[38,0,38,9],[39,0,40,9],[43,0,43,1],[43,2,43,9],[45,0,45,1],[46,0,46,1],[36,0,36,3],[36,4,36,5],[36,7,36,8],[37,0,37,3],[37,4,37,5],[37,7,37,8],[34,0,34,3],[34,4,34,5],[34,7,34,8],[35,0,35,3],[35,4,35,5],[35,7,35,8],[31,0,31,3],[31,7,31,8],[32,0,32,3],[32,4,32,5],[32,7,32,8],[33,0,33,3],[33,4,33,5],[33,7,33,8],[23,0,23,3],[23,4,23,5],[23,6,23,7],[23,8,23,9],[25,0,25,9],[26,0,28,9],[21,0,21,1],[21,2,21,3],[21,4,21,5],[21,6,21,7],[21,8,21,9],[22,0,22,3],[22,4,22,5],[22,6,22,7],[22,8,22,9],[19,0,19,1],[19,2,19,3],[19,4,19,5],[19,6,19,7],[19,8,19,9],[20,0,20,1],[20,2,20,3],[20,4,20,5],[20,6,20,7],[20,8,20,9],[17,0,17,1],[17,2,17,3],[17,4,17,5],[17,6,17,7],[17,8,17,9],[18,0,18,1],[18,2,18,3],[18,4,18,5],[18,6,18,7],[18,8,18,9],[15,0,15,1],[15,2,15,3],[15,4,15,5],[15,6,15,7],[15,8,15,9],[16,0,16,9],[13,0,13,1],[13,2,13,3],[13,4,13,5],[13,6,13,7],[13,8,13,9],[14,0,14,3],[14,4,14,5],[14,6,14,7],[14,8,14,9],[11,0,11,1],[11,2,11,3],[11,4,11,5],[11,6,11,7],[11,8,11,9],[12,0,12,1],[12,2,12,3],[12,4,12,5],[12,6,12,7],[12,8,12,9],[9,0,9,9],[10,0,10,1],[10,2,10,3],[10,4,10,5],[10,6,10,7],[10,8,10,9],[2,0,2,4],[2,6,2,8],[3,1,3,4],[5,3,5,4],[5,6,5,7],[8,0,8,1],[8,2,8,3],[8,4,8,5],[8,6,8,7],[8,8,8,9]]}
[{"$f":"+'Cover Page'!C39","v":2025}," Annual Reporting Performance Form 1"]
[]
[{"$f":"+'Cover Page'!B31","v":"Permit EPR/WP3239SJ"},null,null,null,null,"Operator: ",{"$f":"+'Cover Page'!B37","v":"VEOLIA ES Birmingham Limited"}]
["Facility:",{"$f":"+'Cover Page'!B33:I33","v":"Tyseley Energy from Waste Plant"},null,null,null,"Form:","Performance 1"]
[]
["Reporting  Period from: ",null,null,"2025-01-01",null,"to:","2025-12-31"]
[]
[{"$f":"+A1","v":2025},"Annual Reporting of Waste Disposal and Recovery"]
["Waste Description",null,"Disposal Route(s)",null,"Disposal Tonnes",null,"Recovery Tonnes",null,"% / tonne of waste incinerated"]
["1) Hazardous Wastes"]
["APC Residues",null,"D09/D12",null,{"$f":"'Operational Data'!G35","v":8643.4},null,null,null,{"$f":"IF((E11+G11)>0,(E11+G11)/'Operational Data'!$G$24, \"-\")","v":2.4019919798356503E-2}]
["IBA",null,"D05",null,200.68,null,null,null,{"$f":"IF((E12+G12)>0,(E12+G12)/'Operational Data'!$G$24, \"-\")","v":5.5768765822872756E-4}]
["Interceptor Waste",null,"D09/D12",null,{"$f":"'Operational Data'!G39","v":139.66},null,null,null,{"$f":"IF((E13+G13)>0,(E13+G13)/'Operational Data'!$G$24, \"-\")","v":3.8811370514363206E-4}]
[null,null,null,null,null,null,null,null,{"$f":"IF((E14+G14)>0,(E14+G14)/'Operational Data'!$G$24, \"-\")","v":"-"}]
["Total Hazardous Waste",null,null,null,{"$f":"SUM(E11:F14)","v":8983.74},null,{"$f":"SUM(G11:H14)","v":0},null,{"$f":"IF((E15+G15)>0,(E15+G15)/'Operational Data'!$G$24, \"-\")","v":2.4965721161728866E-2}]
[]
["2) Non-Hazardous Wastes"]
["IBA",null,"R03",null,null,null,{"$f":"'Operational Data'!G36-E12","v":75201.06},null,{"$f":"IF((E18+G18)>0,(E18+G18)/'Operational Data'!$G$24, \"-\")","v":0.20898297312994832}]
["Ferrous Metal",null,"R04",null,null,null,{"$f":"'Operational Data'!G37","v":3705.87},null,{"$f":"IF((E19+G19)>0,(E19+G19)/'Operational Data'!$G$24, \"-\")","v":1.0298574656169495E-2}]
["Process Water",null,null,null,78592,null,83369,null,{"$f":"IF((E20+G20)>0,(E20+G20)/'Operational Data'!$G$24, \"-\")","v":0.45008795502483029}]
["Wooden Packaging",null,"R03",null,null,null,{"$f":"'Operational Data'!G38","v":67.759999999999991},null,{"$f":"IF((E21+G21)>0,(E21+G21)/'Operational Data'!$G$24, \"-\")","v":1.8830434383884081E-4}]
[null,null,null,null,null,null,null,null,{"$f":"IF((E22+G22)>0,(E22+G22)/'Operational Data'!$G$24, \"-\")","v":"-"}]
["Total Non-Hazardous Waste",null,null,null,{"$f":"SUM(E18:F22)","v":78592},null,{"$f":"SUM(G18:H22)","v":162343.69},null,{"$f":"IF((E23+G23)>0,(E23+G23)/'Operational Data'!$G$24, \"-\")","v":0.66955780715478697}]
["TOTAL WASTE",null,null,null,{"$f":"+E23+E15","v":87575.74},null,{"$f":"+G23+G15","v":162343.69},null,{"$f":"IF((E24+G24)>0,(E24+G24)/'Operational Data'!$G$24, \"-\")","v":0.69452352831651576}]
[]
["Operator’s comments :"]
[]
[]
[]
[]
[{"$f":"+A1","v":2025},"Annual Reporting of Water and Other Raw Material Usage"]
["Raw Material",null,null,null,"Usage",null,"Unit","Specific Usage",null,"Unit"]
["Mains Water",null,null,null,{"$f":"+'Operational Data'!G43/1000","v":161.96199999999999},null,"m3",{"$f":"IF(E33>0,E33/'Operational Data'!$G$24,\"-\")","v":4.5009073401455633E-4},null,"m3/te"]
["Total Water",null,null,null,{"$f":"+'Operational Data'!G44+'Operational Data'!G43/1000","v":161.96199999999999},null,"m3",{"$f":"IF(E34>0,E34/'Operational Data'!$G$24,\"-\")","v":4.5009073401455633E-4},null,"m3/te"]
["Urea / Ammonia",null,null,null,{"$f":"+'Operational Data'!G45","v":564900},null,"kg",{"$f":"IF(E35>0,E35/'Operational Data'!$G$24,\"-\")","v":1.5698512962597577},null,"kg/te"]
["Activated Carbon",null,null,null,{"$f":"+'Operational Data'!G47","v":164800},null,"kg",{"$f":"IF(E36>0,E36/'Operational Data'!$G$24,\"-\")","v":0.45797750685715716},null,"kg/te"]
["Lime / hydrated lime / Sodium Bicarb.",null,null,null,{"$f":"+'Operational Data'!G48","v":2165000},null,"kg",{"$f":"IF(E37>0,E37/'Operational Data'!$G$24,\"-\")","v":6.0165127569523378},null,"kg/te"]
["Fuel Oil",null,null,null,{"$f":"'Operational Data'!G49/1000","v":1288.9570000000001},null,"m3",{"$f":"IF(E38>0,E38/'Operational Data'!$G$49,\"-\")","v":1E-3},null,"m3/te"]
["Operator’s comments :"]
[]
[]
[]
[{"$f":"+A31","v":2025},"Annual Reporting of other performance indicators "]
["Parameter",null,"Results by Line"]
[null,null,"A1","A2","A3","A4","A5",null,"Turbine 1","Turbine 2"]
["Operating hours for the year, hours",null,{"$f":"'Operational Data'!G54","v":8083.5},{"$f":"'Operational Data'!G55","v":7820.5},null,null,null,null,{"$f":"'Operational Data'!G59","v":6222}]
["Number of periods of abnormal operation, qty."]
["Cumulative hours of abnormal operation for this year, hours"]
[]
["Operator’s comments :"]
[]
[]
[]
["Signed: ","Paul Collier",null,null,null,null,"Date:","2025-01-31"]

{"sheet":"Energy Form 1","index":5,"n_rows":29,"n_cols":8,"rows_kept":29,"cut":false,"hidden":false,"merged":[[15,0,15,2],[15,3,15,4],[15,6,15,8],[17,0,17,8],[18,0,24,8],[13,0,13,2],[13,3,13,4],[13,6,13,8],[14,0,14,2],[14,3,14,4],[14,6,14,8],[11,0,11,2],[11,3,11,4],[11,6,11,8],[12,0,12,2],[12,3,12,4],[12,6,12,8],[9,0,9,2],[9,3,9,4],[9,6,9,8],[10,0,10,2],[10,3,10,4],[10,6,10,8],[2,6,2,8],[4,1,4,4],[6,3,6,4],[6,6,6,7],[8,0,8,2],[8,3,8,4],[8,6,8,8]]}
[{"$f":"+'Cover Page'!C39","v":2025}," Annual Reporting of Energy Usage/Export"]
[]
[{"$f":"+'Cover Page'!B31","v":"Permit EPR/WP3239SJ"},null,null,null,null,"Operator: ",{"$f":"+'Cover Page'!B37","v":"VEOLIA ES Birmingham Limited"}]
[]
["Facility:",{"$f":"+'Cover Page'!B33:I33","v":"Tyseley Energy from Waste Plant"},null,null,null,"Form:","Energy 1"]
[]
["Reporting  Period from: ",null,null,{"$f":"+'Perf. Form 1'!D6:E6","v":"2025-01-01"},null,"to:",{"$f":"+'Perf. Form 1'!G6:H6","v":"2025-12-31"}]
[]
["Energy Source",null,null,"Energy Usage",null,"Unit","Specific Usage (KWh/tonne incinerated"]
["Electricity Produced",null,null,{"$f":"+'Operational Data'!G27","v":160430},null,"MWh",{"$f":"+'Operational Data'!H27","v":445.83332175420946}]
["Electricity Imported   ",null,null,{"$f":"+'Operational Data'!G29","v":8352.7999999999993},null,"MWh",{"$f":"+'Operational Data'!H29","v":23.212345383959114}]
["Electricity Exported",null,null,{"$f":"+'Operational Data'!G28","v":138888},null,"MWh",{"$f":"+'Operational Data'!H28","v":385.9683250751022}]
["Gas Oil",null,null,{"$f":"'Operational Data'!G49","v":1288957},null,"tonnes",{"$f":"'Operational Data'!H49","v":3.5819982603524316}]
["Steam/hot water exported",null,null,{"$f":"+'Operational Data'!G31","v":0},null,"GWh",{"$f":"+'Operational Data'!H31","v":"-"}]
[]
[]
[]
["Operator’s comments :"]
[]
[]
[]
[]
[]
[]
[]
[]
[]
[]
["Signed: ","Paul Collier",null,null,null,null,"Date:","2025-01-31"]

{"sheet":"Permit Compliance","index":6,"n_rows":30,"n_cols":12,"rows_kept":30,"cut":false,"hidden":false,"merged":[[24,1,24,2],[25,1,25,2],[26,0,26,8],[19,7,19,8],[19,1,19,2],[19,3,19,5],[21,3,21,5],[22,3,22,5],[23,3,23,5],[24,3,24,5],[25,3,25,5],[21,1,21,2],[8,11,20,11],[28,0,28,10],[18,0,18,10],[33,1,33,3],[33,4,33,6],[33,7,33,9],[29,1,29,3],[29,4,29,6],[29,7,29,9],[30,1,30,3],[30,4,30,6],[30,7,30,9],[22,1,22,2],[23,1,23,2],[14,0,14,1],[14,2,14,4],[34,1,34,3],[34,4,34,6],[34,7,34,9],[31,1,31,3],[31,4,31,6],[31,7,31,9],[32,1,32,3],[32,4,32,6],[32,7,32,9],[14,5,14,8],[15,0,15,1],[16,2,16,4],[16,5,16,8],[15,2,15,4],[15,5,15,8],[16,0,16,1],[7,0,7,1],[7,2,7,8],[8,0,8,1],[8,2,8,4],[8,5,8,8],[35,4,35,8],[9,0,9,1],[9,2,9,4],[9,5,9,8],[10,0,10,1],[10,2,10,4],[10,5,10,8],[11,0,11,1],[11,2,11,4],[11,5,11,8],[12,0,12,1],[12,2,12,4],[12,5,12,8],[13,0,13,1],[13,2,13,4],[13,5,13,8]]}
[{"$f":"+'Cover Page'!$B$29","v":"Annual Performance Report 2025"},null,null,null,{"$f":"+'Cover Page'!$B$33","v":"Tyseley Energy from Waste Plant"}]
[]
["Summary of Permit Compliance"]
[]
["Compliance with permit limits for continuously monitored pollutants"]
[]
["The plant met its emission limits as shown in the table below:"]
["Substance",null,"Percentage time compliant during operationNote 1",null,null,null,null,null,null,null,null,"Notes:"]
[null,null,"Half-hourly limit",null,null,"Daily limit",null,null,null,null,null,"Note 1: Please report to 2 decimal places, i.e. xx.xx%\n\nNote 2: Please enter into this table any permit non-compliances that the EA has given a CCS score for. Please also enter any other non-compliances which you have notified to the EA (e.g. ELV exceedances) but which have not yet been assessed by the EA. There is no need to enter any notifications which were subsequently assessed by the EA not to be permit breaches.  \n\nNote 3: Please enter information here (rather than just referencing the notifications that were sent to the EA) including where relevant the incineration line reference, pollutant and value of the measured result for any ELV exceedances.   \n\n"]
["Particulates",null,1,null,null,1]
["Oxides of nitrogen",null,1,null,null,1]
["Sulphur dioxide",null,1,null,null,0.997]
["Carbon monoxide",null,"xx.xx % or \n100.00% 95% of 10-min averages",null,null,1]
["Total organic carbon",null,1,null,null,1]
["Hydrogen chloride",null,1,null,null,1]
["Hydrogen fluoride",null,1,null,null,1]
[null,null,"xx.xx %",null,null,"xx.xx %"]
[]
["Summary of non-compliances under the permit Note 2"]
["Date","Summary of non-compliance Note 3",null,"Reason ",null,null,"Measures taken to prevent reoccurrence","CCS score if applicable*"]
[null,null,null,null,null,null,null,"Impact","Root cause"]
["2025-01-14","Smoke",null,"Fire in refuse bunker",null,null,"Site procedures already in place followed during the incident","None","Waste"]
["2025-07-19","SO2 daily ELV exceeded on Line 1 at 41,72mg/m3 against the daily ELV of 40mg/m3",null,"Process spike",null,null,"Increased abatement (lime slurry) dosing, boiler load reduced, combustion air rations altered, waste picking from a different area of the refuse bunker",4,"n/a"]
[]
[]
[]
["*If the Environment Agency (EA) has given a Compliance Classification Scheme (CCS) score due to a permit non-compliance it should be entered here (CCS4 = No impact; CCS3 = Minor impact; CCS2 = Significant impact; CCS1 = Major impact). If the EA has not yet assessed a non-compliance which you have notified to them, these columns should be left blank. Enter N/A if no score was given for the root cause.  "]
[]
["Summary of any complaints received and actions to taken to resolve them."]
["Date","Summary of complaint [including Line/Reference]",null,null,"Reason (including whether substantiated by the operator or the EA)",null,null,"Measures taken to prevent reoccurrence"]

{"sheet":"Improvements","index":7,"n_rows":39,"n_cols":5,"rows_kept":39,"cut":false,"hidden":false,"merged":[[37,0,37,8],[38,0,47,8],[4,0,4,8],[5,0,13,8],[15,0,15,8],[16,0,24,8],[26,0,26,8],[27,0,35,8]]}
[{"$f":"+'Cover Page'!$B$29","v":"Annual Performance Report 2025"},null,null,null,{"$f":"+'Cover Page'!$B$33","v":"Tyseley Energy from Waste Plant"}]
[]
["Summary of Plant Improvements"]
[]
["Summary of any efficiency improvements that have been completed within the year."]
["n/a"]
[]
[]
[]
[]
[]
[]
[]
[]
[]
["Summary of any permit improvement conditions that have been completed within the year and the resulting environmental benefits."]
["n/a"]
[]
[]
[]
[]
[]
[]
[]
[]
[]
["Summary of any changes to the plant or operating techniques which required a variation to the permit and a summary of the resulting environmental impact."]
["n/a"]
[]
[]
[]
[]
[]
[]
[]
[]
[]
["Summary of any other improvements made to the plant or planned to be made and a summary of the resulting environmental benefits."]
["n/a"]

{"sheet":"Public Liasion","index":8,"n_rows":29,"n_cols":5,"rows_kept":29,"cut":false,"hidden":false,"merged":[[23,0,24,1],[23,2,24,8],[25,0,26,1],[25,2,26,8],[28,0,28,8],[17,0,18,1],[17,2,18,8],[19,0,20,1],[19,2,20,8],[21,0,22,1],[21,2,22,8],[16,0,16,1],[16,2,16,8],[5,0,5,1],[5,2,5,8],[6,0,7,1],[6,2,7,8],[8,0,9,1],[8,2,9,8],[10,0,11,1],[10,2,11,8],[12,0,13,1],[12,2,13,8],[15,0,15,8]]}
[{"$f":"+'Cover Page'!$B$29","v":"Annual Performance Report 2025"},null,null,null,{"$f":"+'Cover Page'!$B$33","v":"Tyseley Energy from Waste Plant"}]
[]
["Details of Public & Stakeholder Liaison"]
[]
["Summary of events held during the reporting year."]
["Date",null,"Description"]
["Bi-monthly",null,"Meetings with Birmingham City Council"]
[]
[]
[]
[]
[]
[]
[]
[]
["List of events planned for next year"]
["Date",null,"Description"]
["Bi-monthly",null,"Meetings with Birmingham City Council"]
[]
[]
[]
[]
[]
[]
[]
[]
[]
[]
["If you wish to be involved in the public liaison programme, please contact https://www.birmingham.veolia.co.uk/contact#no-back"]

{"sheet":"CO2 N2O","index":9,"n_rows":25,"n_cols":6,"rows_kept":25,"cut":false,"hidden":false,"merged":[[6,5,9,5],[22,2,22,3],[25,1,25,3],[16,2,16,3],[4,0,4,3],[9,0,9,3],[17,0,17,3],[13,0,13,3],[12,0,12,1],[8,2,8,3],[11,2,11,3],[19,2,19,3]]}
[{"$f":"+'Cover Page'!$B$29","v":"Annual Performance Report 2025"},null,{"$f":"+'Cover Page'!$B$33","v":"Tyseley Energy from Waste Plant"}]
[]
["Carbon dioxide emissions and biogenic content of waste inputs",null,null,null,null,"Notes:"]
[]
["Carbon dioxide emissions (all types of plant)"]
[null,"Annual mass of carbon dioxide released","tonnes ",374652.44]
[null,"Annual mass of carbon dioxide released per tonne of waste burned","t CO2 / t waste ",{"$f":"IF(D6=\"\",\"\", D6/'Operational Data'!G24)","v":1.0411552816089238},null,"Note 1: All permits require operators to continuously monitor CO2 to EN14181 and flow to BS EN 16911-2 (unless otherwise agreed in writing). Operators must therefore use the results from these instruments to calculate their annual CO2 emissions. Where an operator does not have a flow meter calibrated to BS EN 16911-2, the averaged flow measurement from that year's periodic monitoring can be used instead. If the plant does not have calibrated CO2 CEMS, a suitably justified emissions factor can be used. \n\n"]
[null,"Annual mass of carbon dioxide released per MWh of energy exported","t CO2 / MWh export ",{"$f":"IF(D6=\"\",\"\", D6/'Operational Data'!G28)","v":2.6975148320949254}]
[null,"Description of how annual carbon dioxide mass emission has been calculated. \nSee Note 1","CEM Data"]
["Nitrous oxide emissions (only plants which use ammonia or urea to abate NOx emissions)"]
[null,"Annual mass emissions of nitrous oxide","tonnes N2O",1.32]
[null,"Description of how annual nitrous oxide mass emission has been calculated\nSee Note 2","CEM Data",null,null,"Note 2: All permits require operators to continuously monitor N2O to EN14181 and flow to BS EN 16911-2, unless otherwise agreed in writing. Operators must therefore use the results from these instruments to calculate their annual N2O emissions. Where an operator does not have a flow meter calibrated to BS EN 16911-2, the averaged flow measurement from periodic monitoring can be used instead. If the plant does not have calibrated N2O CEMS, data from periodic monitoring or a suitably justified emissions factor can be used instead."]
["Total annual carbon dioxide + nitrous oxide emissions. \nSee Note 3. ",null,"tonnes CO2e",{"$f":"IF(D11=\"\",\"\",(D11*265)+D6)","v":375002.24},null,"Note 3: Total annual carbon dioxide and nitrous oxide emissions reported as carbon dioxide equivalent where 1 tonne nitrous oxide is equivalent to 265 tonnes carbon dioxide."]
["Biogenic CO2 emissions (See Note 4)",null,null,null,null,"Note 4: Only plants combusting residual municipal waste, refuse derived fuel or solid recovered fuel need complete this section. "]
[null,"Percentage of total carbon dioxide emissions arising from biogenic waste","%"]
[null,"No. of measurements undertaken","Number"]
[null,"Description of how percentage biogenic carbon dioxide emissions have been measured or calculated.\nSee Note 5",null,null,null,"Note 5: The results from C14 sampling should be used if this is carried out at the plant (either via an installed sampler or from spot samples).  \nOtherwise, as an approximation (and in lieu of any more accurate metrics which may be developed in future), the measured or estimated biogenic fraction by net calorific value (see Note 6) can be assumed to be the same as the biogenic CO2 fraction of the total CO2 emissions from the plant. "]
["Biogenic fraction of waste feedstock (See Note 4)"]
[null,"Yearly average biogenic percentage of the waste by net calorific value (NCV)","%"]
[null,"Description of how biogenic percentage (by NCV) has been calculated or estimated. \nSee Note 6",null,null,null,"Note 6: If C14 sampling is carried out at the plant, the methodology set out in the embedded document entitled \"Renewable Energy Association Energy Content of Fuels - Description of Method\" embedded below can be used to calculate the biogenic percentage by net calorific value. Otherwise, data from waste sampling or BIOMA software can be used; or if none of these are available, an estimated figure with justification or a figure assumed on the basis of up-to-date industry data can be used. "]
[null,"Yearly average biogenic percentage of the waste by mass",0.51800000000000002,{"$f":"'Operational Data'!G24*0.518","v":186398.674}]
[null,"If waste sampling undertaken, no. of samples used to ascertain average biogenic percentages above","Number"]
[null,"Description of how biogenic percentage (by mass) has been calculated or estimated. \nSee Note 7","2017 WRAP data",null,null,"Note 7: Where available, data from waste sampling should be used; otherwise, an estimated figure with justification can be used, or a figure assumed on the basis of up-to-date industry data. "]
[]
[null,"Comments:"]

{"sheet":"Residues","index":10,"n_rows":61,"n_cols":11,"rows_kept":61,"cut":false,"hidden":false,"merged":[[61,0,66,6],[57,3,57,4],[60,0,60,6],[52,0,53,1],[54,0,54,1],[55,0,55,1],[56,0,56,1],[57,0,57,1],[54,3,54,4],[55,3,55,4],[54,5,54,6],[55,5,55,6],[56,5,56,6],[57,5,57,6],[58,0,58,6],[45,0,46,1],[45,2,46,6],[47,0,48,1],[47,2,48,6],[56,3,56,4],[52,2,53,2],[53,3,53,4],[53,5,53,6],[52,3,52,6],[51,0,51,6],[4,0,25,8],[4,10,13,13],[41,0,42,1],[41,2,42,6],[43,0,44,1],[43,2,44,6],[37,0,37,6],[38,0,38,1],[38,2,38,6],[30,0,31,6],[32,0,33,6],[34,0,35,6],[39,0,40,1],[39,2,40,6]]}
[{"$f":"+'Cover Page'!$B$29","v":"Annual Performance Report 2025"},null,null,null,{"$f":"+'Cover Page'!$B$33","v":"Tyseley Energy from Waste Plant"}]
[]
["Summary of Residue Handling for the reporting year"]
[]
["Ash residues (known as Incinerator Bottom Ash or IBA) were sent to Castle Bromwich for approximatelly the first half of the year and during the second half of the year, they are sent to Derbyshire for reprocessing. This material is reprocessed by extracting further ferrous and non-ferrous metals and by crushing, trommelling and screening to produce a graded, quality material that is useable as substitute aggregate in such applications as road building.\nFerrous metal removed from the IBA is sent to a steel manufacturer for recycling.\nFiner particulate matter, know as Air Pollution Control (APC) residues, removed from the flue gases by fabric filter is collected and sent to the Minosus Hazardous Waste underground storage facility in Cheshire or to Empire Works, a Veolia facility, for treatment.",null,null,null,null,null,null,null,null,null,"Include in here a summary of residue handling regimes and destinations "]
[]
[]
[]
[]
[]
[]
[]
[]
[]
[]
[]
[]
[]
[]
[]
[]
[]
[]
[]
[]
[]
[]
["Residue Quality Monitoring Requirements"]
[]
["Summary of monitoring undertaken and compliance"]
["As per permit requirements"]
[]
[]
[]
[]
[]
[]
["Commentary on any specific events"]
["Date & Event",null,"Description"]
[]
[]
[]
[]
[]
[]
[]
[]
[]
[]
[]
[]
["Residue Quality Monitoring Results"]
["Parameter (unit) ",null,"Limit*","Normal Operation "]
[null,null,null,"Bottom ash  ",null,"APC Residues"]
["Loss on Ignition (average %)",null,"<5%"]
["Total Organic Carbon (average %)",null,"<3%",0.875]
["No. of Assessments Undertaken",null,"---"]
["No. of Hazardous Results",null,"---"]
["* The permit will specify a limit of either 5% loss on ignition or 3% total organic carbon. If both are measured anyway, please enter the results here, even where the limit does not apply. "]
[]
["Comments :"]

{"sheet":"Water","index":11,"n_rows":23,"n_cols":9,"rows_kept":23,"cut":false,"hidden":false,"merged":[[29,0,29,2],[29,3,29,4],[26,0,26,2],[26,3,26,4],[27,0,27,2],[27,3,27,4],[28,0,28,2],[28,3,28,4],[23,0,23,2],[23,3,23,4],[24,0,24,2],[24,3,24,4],[25,0,25,2],[25,3,25,4],[21,0,21,8],[22,0,22,2],[22,3,22,4],[14,0,15,1],[14,2,15,8],[16,0,17,1],[16,2,17,8],[18,0,19,1],[18,2,19,8],[5,0,6,8],[7,0,8,8],[9,0,10,8],[12,0,12,8],[13,0,13,1],[13,2,13,8]]}
[{"$f":"+'Cover Page'!$B$29","v":"Annual Performance Report 2025"},null,null,null,{"$f":"+'Cover Page'!$B$33","v":"Tyseley Energy from Waste Plant"}]
[]
["Emissions to Water"]
[]
["Summary of monitoring undertaken and compliance"]
["As per Severn Trent discharge consent of trade effluent to public foul sewer"]
[]
["No water samples were taken during the year"]
[]
[]
[]
[]
["Commentary on any specific events"]
["Date & Event",null,"Description"]
[]
[]
[]
[]
[]
[]
[]
["Emissions to Water / Sewer"]
["Parameter",null,null,"Monitoring Frequency",null,"Limit","Target","Max.","Average"]

{"sheet":"Air (periodic)","index":12,"n_rows":42,"n_cols":12,"rows_kept":42,"cut":false,"hidden":false,"merged":[[41,0,42,10],[40,0,40,10],[9,9,9,10],[15,11,16,11],[15,13,16,13],[18,3,18,4],[13,3,13,4],[14,3,14,4],[15,3,15,4],[16,3,16,4],[17,3,17,4],[21,3,21,4],[24,3,24,4],[25,3,25,4],[20,3,20,4],[24,0,24,1],[25,0,25,1],[26,3,26,4],[33,3,33,4],[27,3,27,4],[28,3,28,4],[36,3,36,4],[37,3,37,4],[35,0,35,1],[36,0,36,1],[37,0,37,1],[34,3,34,4],[29,3,29,4],[35,3,35,4],[27,0,27,1],[28,0,28,1],[30,3,30,4],[39,3,39,4],[31,3,31,4],[32,3,32,4],[38,3,38,4],[16,0,16,1],[17,0,17,1],[18,0,18,1],[39,0,39,1],[29,0,29,1],[30,0,30,1],[31,0,31,1],[32,0,32,1],[33,0,33,1],[34,0,34,1],[38,0,38,1],[26,0,26,1],[5,11,8,14],[9,11,11,14],[8,0,8,9],[5,0,6,9],[11,0,11,1],[11,3,11,4],[22,0,22,1],[23,0,23,1],[22,3,22,4],[23,3,23,4],[9,0,10,1],[9,3,10,4],[9,2,10,2],[13,0,13,1],[14,0,14,1],[15,0,15,1],[12,0,12,1],[12,3,12,4],[19,0,19,1],[20,0,20,1],[21,0,21,1],[19,3,19,4]]}
[{"$f":"+'Cover Page'!$B$29","v":"Annual Performance Report 2025"},null,null,null,{"$f":"+'Cover Page'!$B$33","v":"Tyseley Energy from Waste Plant"}]
[]
["Emissions to Air (periodically monitored)"]
[]
["Summary of monitoring undertaken, standards used and compliance",null,null,null,null,null,null,null,null,null,null,"Notes:"]
[null,null,null,null,null,null,null,null,null,null,null,"Template may require adjustment for any bespoke monitoring requirements of permit - please also check that all default ELV values, reference periods and the stated oxygen reference value match those for your plant, and edit if necessary!"]
[]
[]
["Results of emissions to air that are periodically monitored - oxygen reference 11% "]
["Substance",null,"Ref. Period","Emission Limit Value",null,null,null,null,null,"Average",null,"User to add additional tables as necessary, depending on whether quarterly or bi-annual reporting is required for the compliance year"]
[null,null,null,null,null,"A1 (Q1&Q2)","A2 (Q1&Q2)","A1 (Q3&Q4)","A2 (Q3&Q4)","A1","A2"]
["Hydrogen fluoride",null,"1 hr","1 mg/m3",null,7.6700000000000004E-2,7.6700000000000004E-2,4.6699999999999998E-2,0.06,{"$f":"IF(F12=\"\",\"\",AVERAGE(F12,H12))","v":6.1700000000000005E-2},{"$f":"IF(G12=\"\",\"\",AVERAGE(G12,I12))","v":6.8349999999999994E-2}]
["Cd and Tl and their compounds",null,"0.5-8hrs","0.02 mg/m3",null,1.5E-3,1.4E-3,2.2000000000000001E-3,1.6000000000000001E-3,{"$f":"IF(F13=\"\",\"\",AVERAGE(F13,H13))","v":1.8500000000000001E-3},{"$f":"IF(G13=\"\",\"\",AVERAGE(G13,I13))","v":1.5E-3}]
["Hg and its compounds",null,"0.5-8hrs","0.02 mg/m3",null,3.8000000000000002E-4,3.2000000000000003E-4,5.8E-4,5.5000000000000003E-4,4.8000000000000001E-4,4.3500000000000006E-4]
["Sb, As, Pb, Cr, Co, Cu, Mn, Ni, V and their compounds",null,"0.5-8hrs","0.3 mg/m3",null,4.8000000000000001E-2,5.4699999999999999E-2,0.1467,4.4699999999999997E-2,9.7349999999999992E-2,4.9699999999999994E-2]
["Dioxins & Furans (I-TEQ)",null,"6-8hrs","0.06 ng/m3",null,8.3000000000000001E-3,0.01,1.7000000000000001E-2,1.0999999999999999E-2,1.2650000000000002E-2,1.0499999999999999E-2]
["PCBs (WHO-TEQ Humans / Mammals)",null,"6-8hrs","None set ng/m3",null,5.8E-4,8.4999999999999995E-4,2.0999999999999999E-3,7.2000000000000005E-4,1.34E-3,7.85E-4]
["PCBs (WHO-TEQ Fish)",null,"6-8hrs","None set ng/m3",null,3.0000000000000001E-5,4.3999999999999999E-5,1.1E-4,5.3999999999999998E-5,7.0000000000000007E-5,4.8999999999999998E-5]
["PCBs (WHO-TEQ Birds)",null,"6-8hrs","None set ng/m3",null,1.4E-3,1.8E-3,1.0999999999999999E-2,1.2E-2,6.1999999999999998E-3,6.8999999999999999E-3]
["Dioxins & Furans (WHO-TEQ Humans / Mammals)",null,"6-8hrs","None set ng/m3",null,9.2999999999999992E-3,1.0999999999999999E-2,1.7999999999999999E-2,1.2E-2,1.3649999999999999E-2,1.15E-2]
["Dioxins & Furans (WHO-TEQ Fish)",null,"6-8hrs","None set ng/m3",null,7.7999999999999996E-3,0.01,1.7000000000000001E-2,1.0999999999999999E-2,1.2400000000000001E-2,1.0499999999999999E-2]
["Dioxins & Furans (WHO-TEQ Birds)",null,"6-8hrs","None set ng/m3",null,1.0999999999999999E-2,1.7000000000000001E-2,2.1999999999999999E-2,1.2E-2,1.6500000000000001E-2,1.4500000000000001E-2]
["Brominated Dioxins & Furans (I-TEQ)",null,"6-8hrs","None set ng/m3",null,8.4000000000000003E-4,1.92E-3,9.3000000000000005E-4,1.08E-3,{"$f":"AVERAGE(H23,F23)","v":8.8500000000000004E-4},1.5E-3]
["Total PAH",null,"6-8hrs","None set µg/m2",null,0.36,0.21,null,null,{"$f":"AVERAGE(F24,H24)","v":0.36},0.21]
["Anthanthrene",null,"6-8hrs","None set µg/m3",null,1.8E-3,1.9E-3,null,null,1.8E-3,1.9E-3]
["Benzo(a)anthracene",null,"6-8hrs","None set µg/m3",null,1.8E-3,1.9E-3,null,null,1.8E-3,1.9E-3]
["Benzo(a)pyrene",null,"6-8hrs","None set µg/m3",null,1.8E-3,1.9E-3,null,null,1.8E-3,1.9E-3]
["Benzo(b)fluoranthene",null,"6-8hrs","None set µg/m3",null,1.8E-3,1.9E-3,null,null,1.8E-3,1.9E-3]
["Benzo(b)naptho(2,1-d) thiophene",null,"6-8hrs","None set µg/m3",null,1.8E-3,1.9E-3,null,null,1.8E-3,1.9E-3]
["Benzo(c)phenanthrene",null,"6-8hrs","None set µg/m3",null,1.8E-3,1.9E-3,null,null,1.8E-3,1.9E-3]
["Benzo(ghi)perylene",null,"6-8hrs","None set µg/m3",null,1.8E-3,1.9E-3,null,null,1.8E-3,1.9E-3]
["Benzo(k)fluoranthene",null,"6-8hrs","None set µg/m3",null,1.8E-3,1.9E-3,null,null,1.8E-3,1.9E-3]
["Cholanthrene",null,"6-8hrs","None set µg/m3",null,1.8E-3,1.9E-3,null,null,1.8E-3,1.9E-3]
["Chrysene",null,"6-8hrs","None set µg/m3",null,2.7000000000000001E-3,3.0000000000000001E-3,null,null,2.7000000000000001E-3,3.0000000000000001E-3]
["Cyclopenta(cd)pyrene",null,"6-8hrs","None set µg/m3",null,1.8E-3,1.9E-3,null,null,1.8E-3,1.9E-3]
["Dibenzo(ai)pyrene",null,"6-8hrs","None set µg/m3",null,1.8E-3,1.9E-3,null,null,1.8E-3,1.9E-3]
["Dibenzo(ah)anthracene",null,"6-8hrs","None set µg/m3",null,1.8E-3,1.9E-3,null,null,1.8E-3,1.9E-3]
["Fluoranthene",null,"6-8hrs","None set µg/m3",null,5.3999999999999999E-2,0.06,null,null,5.3999999999999999E-2,0.06]
["Indeno(123-cd) pyrene",null,"6-8hrs","None set µg/m3",null,1.8E-3,1.9E-3,null,null,1.8E-3,1.9E-3]
["Naphthalene",null,"6-8hrs","None set µg/m3",null,0.28000000000000003,0.13,null,null,0.28000000000000003,0.13]
["Comments :"]
["The PAH periodic emissions monitoring is an annual requirement and was completed during Q1/Q2 periodic\nemissions monitoring campaign."]

{"sheet":"Air (CEMS)","index":13,"n_rows":28,"n_cols":14,"rows_kept":28,"cut":false,"hidden":false,"merged":[[28,0,29,12],[13,0,14,0],[5,0,6,12],[7,0,8,12],[10,0,10,12],[11,0,12,0],[11,2,12,2],[11,1,12,1],[11,3,11,4],[11,5,11,6],[11,7,11,8],[11,9,11,10],[11,11,11,12],[15,0,16,0],[17,0,18,0],[19,0,20,0],[14,13,15,13],[14,14,15,14],[14,15,15,15],[12,13,13,15],[26,0,26,12],[21,0,22,0],[23,0,24,0]]}
[{"$f":"+'Cover Page'!$B$29","v":"Annual Performance Report 2025"},null,null,null,null,null,null,null,{"$f":"+'Cover Page'!$B$33","v":"Tyseley Energy from Waste Plant"}]
[]
["Emissions to Air (continuously monitored)"]
[null,null,null,null,null,null,null,null,null,null,null,null,null,"Notes:"]
["Summary of monitoring undertaken, standards used and compliance",null,null,null,null,null,null,null,null,null,null,null,null,"Template may require adjustment for any bespoke monitoring requirements of permit"]
["BS EN 14181 & MCertS CEM system",null,null,null,null,null,null,null,null,null,null,null,null,"Please check that all default ELV values match those for your plant and edit if necessary!"]
[null,null,null,null,null,null,null,null,null,null,null,null,null,"Report to 1 decimal place"]
[]
[]
[]
["Results of emissions to air that are continuously monitored (maximum and average values for each line) - oxygen reference 11%"]
["Substance","Reference Period","Emission Limit Value","A1",null,"A2",null,"A3",null,"A4",null,"A5"]
[null,null,null,"Max.","Avg.","Max.","Avg.","Max.","Avg.","Max.","Avg.","Max.","Avg."]
["Oxides of nitrogen","Daily mean","180 mg/m3 ",{"$f":"NOx!O19","v":174.2},{"$f":"NOx!N19","v":159.95000000000002},{"$f":"NOx!O34","v":175.4},{"$f":"NOx!N34","v":162.25833333333335}]
[null,"½ hourly mean","400 mg/m3 ",{"$f":"NOx!M19","v":306.3},{"$f":"NOx!L19","v":159.98333333333332},{"$f":"NOx!M34","v":272.2},{"$f":"NOx!L34","v":162.30000000000001}]
["Particulates","Daily mean","5 mg/m3",{"$f":"Particulates!O19","v":1.1000000000000001},{"$f":"Particulates!N19","v":0.2583333333333333},{"$f":"Particulates!O34","v":1.2},{"$f":"Particulates!N34","v":0.55000000000000004}]
[null,"½ hourly mean","30 mg/m3 ",{"$f":"Particulates!M19","v":7.9},{"$f":"Particulates!L19","v":0.3249999999999999},{"$f":"Particulates!M34","v":3.3},{"$f":"Particulates!L34","v":0.61666666666666681}]
["Total Organic Carbon ","Daily mean","10 mg/m3 ",{"$f":"TOC!O19","v":2.9},{"$f":"TOC!N19","v":0.37500000000000006},{"$f":"TOC!O34","v":2.6},{"$f":"TOC!N34","v":0.61666666666666659}]
[null,"½ hourly mean","20 mg/m3 ",{"$f":"TOC!M19","v":18.100000000000001},{"$f":"TOC!L19","v":0.41666666666666657},{"$f":"TOC!M34","v":15.8},{"$f":"TOC!L34","v":0.66666666666666663}]
["Hydrogen chloride ","Daily mean","8 mg/m3 ",{"$f":"HCl!O19","v":7.4},{"$f":"HCl!N19","v":4.4416666666666655},{"$f":"HCl!O34","v":6.9},{"$f":"HCl!N34","v":4.4166666666666661}]
[null,"½ hourly mean","60 mg/m3 ",{"$f":"HCl!M19","v":46},{"$f":"HCl!L19","v":4.4666666666666659},{"$f":"HCl!M34","v":51.2},{"$f":"HCl!L34","v":4.4833333333333334}]
["Sulphur dioxide","Daily mean","40 mg/m3 ",{"$f":"'SO2'!O19","v":41.7},{"$f":"'SO2'!N19","v":6.7916666666666679},{"$f":"'SO2'!O34","v":24.1},{"$f":"'SO2'!N34","v":5.708333333333333}]
[null,"½ hourly mean","200 mg/m3 ",{"$f":"'SO2'!M19","v":166.8},{"$f":"'SO2'!L19","v":6.9000000000000012},{"$f":"'SO2'!M34","v":176.3},{"$f":"'SO2'!L34","v":5.8166666666666664}]
["Carbon monoxide ","Daily mean","50 mg/m3 ",{"$f":"'CO 95% 10 min'!Q22","v":28.2},{"$f":"'CO 95% 10 min'!P22","v":11.908333333333331},{"$f":"'CO 95% 10 min'!Q37","v":27.2},{"$f":"'CO 95% 10 min'!P37","v":11.450000000000001}]
[null,"95%ile 10-min avg *","150 mg/m3 *",{"$f":"'CO 95% 10 min'!M22","v":73.725000000000009},{"$f":"'CO 95% 10 min'!N22","v":11.991666666666667},{"$f":"'CO 95% 10 min'!M37","v":84.1},{"$f":"'CO 95% 10 min'!N37","v":11.475000000000001}]
[" Ammonia","Daily mean","15 mg/m3 ",{"$f":"'NH3'!O19","v":14.1},{"$f":"'NH3'!N19","v":1.075},{"$f":"'NH3'!O34","v":7.1},{"$f":"'NH3'!N34","v":0.90833333333333355}]
["* = delete as appropriate, depending on whether your plant has half-hourly or 10-min CO ELVs\n"]
["Comments :"]

{"sheet":"HCl","index":14,"n_rows":79,"n_cols":17,"rows_kept":79,"cut":false,"hidden":false,"merged":[[12,16,15,18],[51,9,63,9],[66,9,78,9],[4,9,4,14],[4,1,4,3],[4,4,4,6],[48,0,51,6],[47,0,47,6],[6,9,18,9],[21,9,33,9],[36,9,48,9],[3,16,7,18],[9,16,11,18],[18,4,18,6]]}
[{"$f":"+'Cover Page'!$B$29","v":"Annual Performance Report 2025"},null,null,null,{"$f":"+'Cover Page'!$B$33","v":"Tyseley Energy from Waste Plant"}]
[]
["Monitoring of Hydrogen Chloride emissions",null,null,"Whole Installation",null,null,"See  Notes in Cell Q3",null,null,{"$f":"+A3","v":"Monitoring of Hydrogen Chloride emissions"},null,null,null,"Per Combustion Line",null,null,"Notes:"]
[null,null,null,null,null,null,null,null,null,null,null,null,null,null,null,null,"User to add logic to complete Whole installation, Table A5:G18. From the data in Per Combustion Line, Table J6:O79, subject to No. of lines installed"]
[{"$f":"+'Cover Page'!C39","v":2025},"1/2 Hourly Reference Periods",null,null,"Daily Reference Periods"]
["mg/Nm3","1/2 hourly HCl ELV","Monthly mean of half-hourly averages","Highest half- hourly average","Daily HCl ELV","Monthly mean of  daily averages","Highest daily average",null,null,{"$f":"+A5","v":2025},"mg/Nm3","Monthly mean of half-hourly averages","Highest half- hourly average","Monthly mean of  daily averages","Highest daily average"]
["Jan",60,{"$f":"IF(L7=\"\",\"\",AVERAGE(L7,L22))","v":4.1999999999999993},{"$f":"IF(M7=\"\",\"\",AVERAGE(M7,M22))","v":22.35},8,{"$f":"IF(N7=\"\",\"\",AVERAGE(N7,N22))","v":4.1500000000000004},{"$f":"IF(O7=\"\",\"\",AVERAGE(O7,O22))","v":5.8},null,null,"A1","Jan",3.8,12.8,3.8,5.8]
["Feb",60,{"$f":"IF(L8=\"\",\"\",AVERAGE(L8,L23))","v":5.15},{"$f":"IF(M8=\"\",\"\",AVERAGE(M8,M23))","v":34.15},8,{"$f":"IF(N8=\"\",\"\",AVERAGE(N8,N23))","v":5.0999999999999996},{"$f":"IF(O8=\"\",\"\",AVERAGE(O8,O23))","v":6.5500000000000007},null,null,null,"Feb",5.0999999999999996,39.1,5.0999999999999996,6.7]
["Mar",60,5.45,35.049999999999997,8,5.4,7.15,null,null,null,"Mar",5.5,44.6,5.4,7.4,null,"Whole Installation table A5:G18:"]
["Apr",60,5,26.7,8,5,6.15,null,null,null,"Apr",4.9000000000000004,30.5,5,6.2,null,"Mean: for 1/2 hourly and daily periods calculate mean of values across all operational combustion lines for the month"]
["May",60,5.45,39.15,8,5.4,6.7,null,null,null,"May",5.5,46,5.5,6.9]
["Jun",60,5.15,33,8,5.0999999999999996,6.4,null,null,null,"Jun",4.9000000000000004,26.5,4.8,6.3]
["Jul",60,2.25,8.4499999999999993,8,2,2.7,null,null,null,"Jul",2.8,8.5,2.7,3.7,null,"Maximum: for 1/2 hourly and daily periods use the highest value across all operational combustion lines for the month"]
["Aug",60,3.25,17,8,3.2,4.4499999999999993,null,null,null,"Aug",3.4,17.7,3.3,4.8]
["Sep",60,4.05,22.15,8,4.05,6.15,null,null,null,"Sep",3.8,25.1,3.8,6.1]
["Oct",60,4.5,43.75,8,4.4499999999999993,6.2,null,null,null,"Oct",4.5999999999999996,36.299999999999997,4.5999999999999996,5.9]
["Nov",60,4.45,17.899999999999999,8,4.5,6,null,null,null,"Nov",4.5,19.100000000000001,4.5,5.5]
["Dec",60,4.8,38.15,8,4.8,7,null,null,null,"Dec",4.8,38.299999999999997,4.8,7.4]
[null,null,null,null,null,null,null,null,null,null,"Annual",{"$f":"AVERAGE(L7:L18)","v":4.4666666666666659},{"$f":"MAX(M7:M18)","v":46},{"$f":"AVERAGE(N7:N18)","v":4.4416666666666655},{"$f":"MAX(O7:O18)","v":7.4}]
[]
[null,null,null,null,null,null,null,null,null,{"$f":"+A5","v":2025},"mg/Nm3","Monthly mean of half-hourly averages","Highest half- hourly average","Monthly mean of  daily averages","Highest daily average"]
[null,null,null,null,null,null,null,null,null,"A2","Jan",4.5999999999999996,31.9,4.5,5.8]
[null,null,null,null,null,null,null,null,null,null,"Feb",5.2,29.2,5.0999999999999996,6.4]
[null,null,null,null,null,null,null,null,null,null,"Mar",5.4,25.5,5.4,6.9]
[null,null,null,null,null,null,null,null,null,null,"Apr",5.0999999999999996,22.9,5,6.1]
[null,null,null,null,null,null,null,null,null,null,"May",5.4,32.299999999999997,5.3,6.5]
[null,null,null,null,null,null,null,null,null,null,"Jun",5.4,39.5,5.4,6.5]
[null,null,null,null,null,null,null,null,null,null,"Jul",1.7,8.4,1.3,1.7]
[null,null,null,null,null,null,null,null,null,null,"Aug",3.1,16.3,3.1,4.0999999999999996]
[null,null,null,null,null,null,null,null,null,null,"Sep",4.3,19.2,4.3,6.2]
[null,null,null,null,null,null,null,null,null,null,"Oct",4.4000000000000004,51.2,4.3,6.5]
[null,null,null,null,null,null,null,null,null,null,"Nov",4.4000000000000004,16.7,4.5,6.5]
[null,null,null,null,null,null,null,null,null,null,"Dec",4.8,38,4.8,6.6]
[null,null,null,null,null,null,null,null,null,null,"Annual",{"$f":"AVERAGE(L22:L33)","v":4.4833333333333334},{"$f":"MAX(M22:M33)","v":51.2},{"$f":"AVERAGE(N22:N33)","v":4.4166666666666661},{"$f":"MAX(O22:O33)","v":6.9}]
[]
[null,null,null,null,null,null,null,null,null,{"$f":"+A5","v":2025},"mg/Nm3","Monthly mean of half-hourly averages","Highest half- hourly average","Monthly mean of  daily averages","Highest daily average"]
[null,null,null,null,null,null,null,null,null,"A3","Jan"]
[null,null,null,null,null,null,null,null,null,null,"Feb"]
[null,null,null,null,null,null,null,null,null,null,"Mar"]
[null,null,null,null,null,null,null,null,null,null,"Apr"]
[null,null,null,null,null,null,null,null,null,null,"May"]
[null,null,null,null,null,null,null,null,null,null,"Jun"]
[null,null,null,null,null,null,null,null,null,null,"Jul"]
[null,null,null,null,null,null,null,null,null,null,"Aug"]
[null,null,null,null,null,null,null,null,null,null,"Sep"]
[null,null,null,null,null,null,null,null,null,null,"Oct"]
[null,null,null,null,null,null,null,null,null,null,"Nov"]
["Comments :",null,null,null,null,null,null,null,null,null,"Dec"]
[null,null,null,null,null,null,null,null,null,null,"Annual",{"$f":"AVERAGE(L37:L48)","v":{"$error":"#DIV/0!"}},{"$f":"MAX(M37:M48)","v":0},{"$f":"AVERAGE(N37:N48)","v":{"$error":"#DIV/0!"}},{"$f":"MAX(O37:O48)","v":0}]
[]
[null,null,null,null,null,null,null,null,null,{"$f":"+A5","v":2025},"mg/Nm3","Monthly mean of half-hourly averages","Highest half- hourly average","Monthly mean of  daily averages","Highest daily average"]
[null,null,null,null,null,null,null,null,null,"A4","Jan"]
[null,null,null,null,null,null,null,null,null,null,"Feb"]
[null,null,null,null,null,null,null,null,null,null,"Mar"]
[null,null,null,null,null,null,null,null,null,null,"Apr"]
[null,null,null,null,null,null,null,null,null,null,"May"]
[null,null,null,null,null,null,null,null,null,null,"Jun"]
[null,null,null,null,null,null,null,null,null,null,"Jul"]
[null,null,null,null,null,null,null,null,null,null,"Aug"]
[null,null,null,null,null,null,null,null,null,null,"Sep"]
[null,null,null,null,null,null,null,null,null,null,"Oct"]
[null,null,null,null,null,null,null,null,null,null,"Nov"]
[null,null,null,null,null,null,null,null,null,null,"Dec"]
[null,null,null,null,null,null,null,null,null,null,"Annual",{"$f":"AVERAGE(L52:L63)","v":{"$error":"#DIV/0!"}},{"$f":"MAX(M52:M63)","v":0},{"$f":"AVERAGE(N52:N63)","v":{"$error":"#DIV/0!"}},{"$f":"MAX(O52:O63)","v":0}]
[]
[null,null,null,null,null,null,null,null,null,{"$f":"+A5","v":2025},"mg/Nm3","Monthly mean of half-hourly averages","Highest half- hourly average","Monthly mean of  daily averages","Highest daily average"]
[null,null,null,null,null,null,null,null,null,"A5","Jan"]
[null,null,null,null,null,null,null,null,null,null,"Feb"]
[null,null,null,null,null,null,null,null,null,null,"Mar"]
[null,null,null,null,null,null,null,null,null,null,"Apr"]
[null,null,null,null,null,null,null,null,null,null,"May"]
[null,null,null,null,null,null,null,null,null,null,"Jun"]
[null,null,null,null,null,null,null,null,null,null,"Jul"]
[null,null,null,null,null,null,null,null,null,null,"Aug"]
[null,null,null,null,null,null,null,null,null,null,"Sep"]
[null,null,null,null,null,null,null,null,null,null,"Oct"]
[null,null,null,null,null,null,null,null,null,null,"Nov"]
[null,null,null,null,null,null,null,null,null,null,"Dec"]
[null,null,null,null,null,null,null,null,null,null,"Annual",{"$f":"AVERAGE(L67:L78)","v":{"$error":"#DIV/0!"}},{"$f":"MAX(M67:M78)","v":0},{"$f":"AVERAGE(N67:N78)","v":{"$error":"#DIV/0!"}},{"$f":"MAX(O67:O78)","v":0}]

{"sheet":"SO2","index":15,"n_rows":79,"n_cols":17,"rows_kept":79,"cut":false,"hidden":false,"merged":[[3,16,7,18],[9,16,11,18],[12,16,15,18],[66,9,78,9],[4,1,4,3],[4,4,4,6],[4,9,4,14],[6,9,18,9],[21,9,33,9],[36,9,48,9],[47,0,47,6],[48,0,51,6],[51,9,63,9],[18,4,18,6]]}
[{"$f":"+'Cover Page'!$B$29","v":"Annual Performance Report 2025"},null,null,null,{"$f":"+'Cover Page'!$B$33","v":"Tyseley Energy from Waste Plant"}]
[]
["Monitoring of Sulphur dioxide emissions",null,null,"Whole Installation",null,null,"See  Notes in Cell Q3",null,null,{"$f":"+A3","v":"Monitoring of Sulphur dioxide emissions"},null,null,null,"Per Combustion Line",null,null,"Notes:"]
[null,null,null,null,null,null,null,null,null,null,null,null,null,null,null,null,"User to add logic to complete Whole installation, Table A5:G18. From the data in Per Combustion Line, Table J6:O79, subject to No. of lines installed"]
[{"$f":"+'Cover Page'!C39","v":2025},"1/2 Hourly Reference Periods",null,null,"Daily Reference Periods"]
["mg/Nm3","1/2 hourly SO2 ELV","Monthly mean of half-hourly averages","Highest half- hourly average","Daily SO2 ELV","Monthly mean of  daily averages","Highest daily average",null,null,{"$f":"+A5","v":2025},"mg/Nm3","Monthly mean of half-hourly averages","Highest half- hourly average","Monthly mean of  daily averages","Highest daily average"]
["Jan",200,{"$f":"IF(L7=\"\",\"\",AVERAGE(L7,L22))","v":5.0999999999999996},{"$f":"IF(M7=\"\",\"\",AVERAGE(M7,M22))","v":88.85},40,{"$f":"IF(N7=\"\",\"\",AVERAGE(N7,N22))","v":5.05},{"$f":"IF(O7=\"\",\"\",AVERAGE(O7,O22))","v":13.600000000000001},null,null,"A1","Jan",6.2,113.9,6.2,16.600000000000001]
["Feb",200,{"$f":"IF(L8=\"\",\"\",AVERAGE(L8,L23))","v":6.6},{"$f":"IF(M8=\"\",\"\",AVERAGE(M8,M23))","v":119.6},40,{"$f":"IF(N8=\"\",\"\",AVERAGE(N8,N23))","v":6.55},{"$f":"IF(O8=\"\",\"\",AVERAGE(O8,O23))","v":12.8},null,null,null,"Feb",7.7,109.7,7.6,14.7]
["Mar",200,6.15,109.75,40,6.15,12.7,null,null,null,"Mar",7.4,112.6,7.4,17,null,"Whole Installation table A5:G18:"]
["Apr",200,4.1500000000000004,71.2,40,4.1500000000000004,7.4,null,null,null,"Apr",4.4000000000000004,88.9,4.5,7.2,null,"Mean: for 1/2 hourly and daily periods calculate mean of values across all operational combustion lines for the month"]
["May",200,6.15,113.35,40,6.15,13.4,null,null,null,"May",6.6,118.4,6.6,15.3]
["Jun",200,4.3499999999999996,169.3,40,4.3499999999999996,10.4,null,null,null,"Jun",5,162.30000000000001,5,11.3]
["Jul",200,16.100000000000001,124.25,40,15.100000000000001,28.75,null,null,null,"Jul",20.100000000000001,150.19999999999999,19.100000000000001,41.7,null,"Maximum: for 1/2 hourly and daily periods use the highest value across all operational combustion lines for the month"]
["Aug",200,9.1,113.69999999999999,40,9,21.65,null,null,null,"Aug",7.1,98.2,7,19.2]
["Sep",200,4.25,93.4,40,4.2,10.75,null,null,null,"Sep",4.4000000000000004,110.5,4.2,12.3]
["Oct",200,4.2,88.9,40,4.1500000000000004,11.95,null,null,null,"Oct",4.4000000000000004,88.4,4.4000000000000004,13.3]
["Nov",200,5.3,127.55000000000001,40,5.35,12.35,null,null,null,"Nov",5,166.8,5.0999999999999996,13.5]
["Dec",200,4.8499999999999996,124.35,40,4.8000000000000007,11.4,null,null,null,"Dec",4.5,115.2,4.4000000000000004,10.5]
[null,null,null,null,null,null,null,null,null,null,"Annual",{"$f":"AVERAGE(L7:L18)","v":6.9000000000000012},{"$f":"MAX(M7:M18)","v":166.8},{"$f":"AVERAGE(N7:N18)","v":6.7916666666666679},{"$f":"MAX(O7:O18)","v":41.7}]
[]
[null,null,null,null,null,null,null,null,null,{"$f":"+A5","v":2025},"mg/Nm3","Monthly mean of half-hourly averages","Highest half- hourly average","Monthly mean of  daily averages","Highest daily average"]
[null,null,null,null,null,null,null,null,null,"A2","Jan",4,63.8,3.9,10.6]
[null,null,null,null,null,null,null,null,null,null,"Feb",5.5,129.5,5.5,10.9]
[null,null,null,null,null,null,null,null,null,null,"Mar",4.9000000000000004,106.9,4.9000000000000004,8.4]
[null,null,null,null,null,null,null,null,null,null,"Apr",3.9,53.5,3.8,7.6]
[null,null,null,null,null,null,null,null,null,null,"May",5.7,108.3,5.7,11.5]
[null,null,null,null,null,null,null,null,null,null,"Jun",3.7,176.3,3.7,9.5]
[null,null,null,null,null,null,null,null,null,null,"Jul",12.1,98.3,11.1,15.8]
[null,null,null,null,null,null,null,null,null,null,"Aug",11.1,129.19999999999999,11,24.1]
[null,null,null,null,null,null,null,null,null,null,"Sep",4.0999999999999996,76.3,4.2,9.1999999999999993]
[null,null,null,null,null,null,null,null,null,null,"Oct",4,89.4,3.9,10.6]
[null,null,null,null,null,null,null,null,null,null,"Nov",5.6,88.3,5.6,11.2]
[null,null,null,null,null,null,null,null,null,null,"Dec",5.2,133.5,5.2,12.3]
[null,null,null,null,null,null,null,null,null,null,"Annual",{"$f":"AVERAGE(L22:L33)","v":5.8166666666666664},{"$f":"MAX(M22:M33)","v":176.3},{"$f":"AVERAGE(N22:N33)","v":5.708333333333333},{"$f":"MAX(O22:O33)","v":24.1}]
[]
[null,null,null,null,null,null,null,null,null,{"$f":"+A5","v":2025},"mg/Nm3","Monthly mean of half-hourly averages","Highest half- hourly average","Monthly mean of  daily averages","Highest daily average"]
[null,null,null,null,null,null,null,null,null,"A3","Jan"]
[null,null,null,null,null,null,null,null,null,null,"Feb"]
[null,null,null,null,null,null,null,null,null,null,"Mar"]
[null,null,null,null,null,null,null,null,null,null,"Apr"]
[null,null,null,null,null,null,null,null,null,null,"May"]
[null,null,null,null,null,null,null,null,null,null,"Jun"]
[null,null,null,null,null,null,null,null,null,null,"Jul"]
[null,null,null,null,null,null,null,null,null,null,"Aug"]
[null,null,null,null,null,null,null,null,null,null,"Sep"]
[null,null,null,null,null,null,null,null,null,null,"Oct"]
[null,null,null,null,null,null,null,null,null,null,"Nov"]
["Comments :",null,null,null,null,null,null,null,null,null,"Dec"]
[null,null,null,null,null,null,null,null,null,null,"Annual",{"$f":"AVERAGE(L37:L48)","v":{"$error":"#DIV/0!"}},{"$f":"MAX(M37:M48)","v":0},{"$f":"AVERAGE(N37:N48)","v":{"$error":"#DIV/0!"}},{"$f":"MAX(O37:O48)","v":0}]
[]
[null,null,null,null,null,null,null,null,null,{"$f":"+A5","v":2025},"mg/Nm3","Monthly mean of half-hourly averages","Highest half- hourly average","Monthly mean of  daily averages","Highest daily average"]
[null,null,null,null,null,null,null,null,null,"A4","Jan"]
[null,null,null,null,null,null,null,null,null,null,"Feb"]
[null,null,null,null,null,null,null,null,null,null,"Mar"]
[null,null,null,null,null,null,null,null,null,null,"Apr"]
[null,null,null,null,null,null,null,null,null,null,"May"]
[null,null,null,null,null,null,null,null,null,null,"Jun"]
[null,null,null,null,null,null,null,null,null,null,"Jul"]
[null,null,null,null,null,null,null,null,null,null,"Aug"]
[null,null,null,null,null,null,null,null,null,null,"Sep"]
[null,null,null,null,null,null,null,null,null,null,"Oct"]
[null,null,null,null,null,null,null,null,null,null,"Nov"]
[null,null,null,null,null,null,null,null,null,null,"Dec"]
[null,null,null,null,null,null,null,null,null,null,"Annual",{"$f":"AVERAGE(L52:L63)","v":{"$error":"#DIV/0!"}},{"$f":"MAX(M52:M63)","v":0},{"$f":"AVERAGE(N52:N63)","v":{"$error":"#DIV/0!"}},{"$f":"MAX(O52:O63)","v":0}]
[]
[null,null,null,null,null,null,null,null,null,{"$f":"+A5","v":2025},"mg/Nm3","Monthly mean of half-hourly averages","Highest half- hourly average","Monthly mean of  daily averages","Highest daily average"]
[null,null,null,null,null,null,null,null,null,"A5","Jan"]
[null,null,null,null,null,null,null,null,null,null,"Feb"]
[null,null,null,null,null,null,null,null,null,null,"Mar"]
[null,null,null,null,null,null,null,null,null,null,"Apr"]
[null,null,null,null,null,null,null,null,null,null,"May"]
[null,null,null,null,null,null,null,null,null,null,"Jun"]
[null,null,null,null,null,null,null,null,null,null,"Jul"]
[null,null,null,null,null,null,null,null,null,null,"Aug"]
[null,null,null,null,null,null,null,null,null,null,"Sep"]
[null,null,null,null,null,null,null,null,null,null,"Oct"]
[null,null,null,null,null,null,null,null,null,null,"Nov"]
[null,null,null,null,null,null,null,null,null,null,"Dec"]
[null,null,null,null,null,null,null,null,null,null,"Annual",{"$f":"AVERAGE(L67:L78)","v":{"$error":"#DIV/0!"}},{"$f":"MAX(M67:M78)","v":0},{"$f":"AVERAGE(N67:N78)","v":{"$error":"#DIV/0!"}},{"$f":"MAX(O67:O78)","v":0}]

{"sheet":"NOx","index":16,"n_rows":79,"n_cols":17,"rows_kept":79,"cut":false,"hidden":false,"merged":[[3,16,7,18],[9,16,11,18],[12,16,15,18],[66,9,78,9],[4,1,4,3],[4,4,4,6],[4,9,4,14],[6,9,18,9],[21,9,33,9],[36,9,48,9],[47,0,47,6],[48,0,51,6],[51,9,63,9],[18,4,18,6]]}
[{"$f":"+'Cover Page'!$B$29","v":"Annual Performance Report 2025"},null,null,null,{"$f":"+'Cover Page'!$B$33","v":"Tyseley Energy from Waste Plant"}]
[]
["Monitoring of Oxides of Nitrogen emissions",null,null,"Whole Installation",null,null,"See  Notes in Cell Q3",null,null,{"$f":"+A3","v":"Monitoring of Oxides of Nitrogen emissions"},null,null,null,"Per Combustion Line",null,null,"Notes:"]
[null,null,null,null,null,null,null,null,null,null,null,null,null,null,null,null,"User to add logic to complete Whole installation, Table A5:G18. From the data in Per Combustion Line, Table J6:O79, subject to No. of lines installed"]
[{"$f":"+'Cover Page'!C39","v":2025},"1/2 Hourly Reference Periods",null,null,"Daily Reference Periods"]
["mg/Nm3","1/2 hourly NOx ELV","Monthly mean of half-hourly averages","Highest half- hourly average","Daily NOx ELV","Monthly mean of  daily averages","Highest daily average",null,null,{"$f":"+A5","v":2025},"mg/Nm3","Monthly mean of half-hourly averages","Highest half- hourly average","Monthly mean of  daily averages","Highest daily average"]
["Jan",400,{"$f":"IF(L7=\"\",\"\",AVERAGE(L7,L22))","v":163.85},{"$f":"IF(M7=\"\",\"\",AVERAGE(M7,M22))","v":210.45},180,{"$f":"IF(N7=\"\",\"\",AVERAGE(N7,N22))","v":163.75},{"$f":"IF(O7=\"\",\"\",AVERAGE(O7,O22))","v":165.15},null,null,"A1","Jan",163.69999999999999,218.9,163.6,164.9]
["Feb",400,{"$f":"IF(L8=\"\",\"\",AVERAGE(L8,L23))","v":163.35},{"$f":"IF(M8=\"\",\"\",AVERAGE(M8,M23))","v":194.95},180,{"$f":"IF(N8=\"\",\"\",AVERAGE(N8,N23))","v":163.30000000000001},{"$f":"IF(O8=\"\",\"\",AVERAGE(O8,O23))","v":165.55},null,null,null,"Feb",163.6,196.5,163.6,165.4]
["Mar",400,162.94999999999999,195.5,180,162.94999999999999,165.05,null,null,null,"Mar",163.19999999999999,195.8,163.19999999999999,164.7,null,"Whole Installation table A5:G18:"]
["Apr",400,155.69999999999999,197.05,180,155.69999999999999,158.4,null,null,null,"Apr",153,203.1,153,154.5,null,"Mean: for 1/2 hourly and daily periods calculate mean of values across all operational combustion lines for the month"]
["May",400,152.69999999999999,233.89999999999998,180,152.64999999999998,159.94999999999999,null,null,null,"May",148.80000000000001,257.2,148.69999999999999,156.69999999999999]
["Jun",400,157.15,202.25,180,156.94999999999999,165.64999999999998,null,null,null,"Jun",154.80000000000001,191.3,154.69999999999999,164.6]
["Jul",400,162.6,252.55,180,162.69999999999999,170.6,null,null,null,"Jul",160,306.3,160,172.1,null,"Maximum: for 1/2 hourly and daily periods use the highest value across all operational combustion lines for the month"]
["Aug",400,163.25,241.05,180,163.19999999999999,169.4,null,null,null,"Aug",162.30000000000001,239.1,162.19999999999999,170.9]
["Sep",400,162.44999999999999,215.2,180,162.35000000000002,168.5,null,null,null,"Sep",161,210.9,160.9,164.8]
["Oct",400,161.85000000000002,246.5,180,161.80000000000001,167.5,null,null,null,"Oct",161.9,220.8,161.80000000000001,166.6]
["Nov",400,163.4,199.6,180,163.44999999999999,166.39999999999998,null,null,null,"Nov",164,202.5,164.2,165.6]
["Dec",400,164.45,229.95,180,164.45,174.8,null,null,null,"Dec",163.5,225,163.5,174.2]
[null,null,null,null,null,null,null,null,null,null,"Annual",{"$f":"AVERAGE(L7:L18)","v":159.98333333333332},{"$f":"MAX(M7:M18)","v":306.3},{"$f":"AVERAGE(N7:N18)","v":159.95000000000002},{"$f":"MAX(O7:O18)","v":174.2}]
[]
[null,null,null,null,null,null,null,null,null,{"$f":"+A5","v":2025},"mg/Nm3","Monthly mean of half-hourly averages","Highest half- hourly average","Monthly mean of  daily averages","Highest daily average"]
[null,null,null,null,null,null,null,null,null,"A2","Jan",164,202,163.9,165.4]
[null,null,null,null,null,null,null,null,null,null,"Feb",163.1,193.4,163,165.7]
[null,null,null,null,null,null,null,null,null,null,"Mar",162.69999999999999,195.2,162.69999999999999,165.4]
[null,null,null,null,null,null,null,null,null,null,"Apr",158.4,191,158.4,162.30000000000001]
[null,null,null,null,null,null,null,null,null,null,"May",156.6,210.6,156.6,163.19999999999999]
[null,null,null,null,null,null,null,null,null,null,"Jun",159.5,213.2,159.19999999999999,166.7]
[null,null,null,null,null,null,null,null,null,null,"Jul",165.2,198.8,165.4,169.1]
[null,null,null,null,null,null,null,null,null,null,"Aug",164.2,243,164.2,167.9]
[null,null,null,null,null,null,null,null,null,null,"Sep",163.9,219.5,163.80000000000001,172.2]
[null,null,null,null,null,null,null,null,null,null,"Oct",161.80000000000001,272.2,161.80000000000001,168.4]
[null,null,null,null,null,null,null,null,null,null,"Nov",162.80000000000001,196.7,162.69999999999999,167.2]
[null,null,null,null,null,null,null,null,null,null,"Dec",165.4,234.9,165.4,175.4]
[null,null,null,null,null,null,null,null,null,null,"Annual",{"$f":"AVERAGE(L22:L33)","v":162.30000000000001},{"$f":"MAX(M22:M33)","v":272.2},{"$f":"AVERAGE(N22:N33)","v":162.25833333333335},{"$f":"MAX(O22:O33)","v":175.4}]
[]
[null,null,null,null,null,null,null,null,null,{"$f":"+A5","v":2025},"mg/Nm3","Monthly mean of half-hourly averages","Highest half- hourly average","Monthly mean of  daily averages","Highest daily average"]
[null,null,null,null,null,null,null,null,null,"A3","Jan"]
[null,null,null,null,null,null,null,null,null,null,"Feb"]
[null,null,null,null,null,null,null,null,null,null,"Mar"]
[null,null,null,null,null,null,null,null,null,null,"Apr"]
[null,null,null,null,null,null,null,null,null,null,"May"]
[null,null,null,null,null,null,null,null,null,null,"Jun"]
[null,null,null,null,null,null,null,null,null,null,"Jul"]
[null,null,null,null,null,null,null,null,null,null,"Aug"]
[null,null,null,null,null,null,null,null,null,null,"Sep"]
[null,null,null,null,null,null,null,null,null,null,"Oct"]
[null,null,null,null,null,null,null,null,null,null,"Nov"]
["Comments :",null,null,null,null,null,null,null,null,null,"Dec"]
[null,null,null,null,null,null,null,null,null,null,"Annual",{"$f":"AVERAGE(L37:L48)","v":{"$error":"#DIV/0!"}},{"$f":"MAX(M37:M48)","v":0},{"$f":"AVERAGE(N37:N48)","v":{"$error":"#DIV/0!"}},{"$f":"MAX(O37:O48)","v":0}]
[]
[null,null,null,null,null,null,null,null,null,{"$f":"+A5","v":2025},"mg/Nm3","Monthly mean of half-hourly averages","Highest half- hourly average","Monthly mean of  daily averages","Highest daily average"]
[null,null,null,null,null,null,null,null,null,"A4","Jan"]
[null,null,null,null,null,null,null,null,null,null,"Feb"]
[null,null,null,null,null,null,null,null,null,null,"Mar"]
[null,null,null,null,null,null,null,null,null,null,"Apr"]
[null,null,null,null,null,null,null,null,null,null,"May"]
[null,null,null,null,null,null,null,null,null,null,"Jun"]
[null,null,null,null,null,null,null,null,null,null,"Jul"]
[null,null,null,null,null,null,null,null,null,null,"Aug"]
[null,null,null,null,null,null,null,null,null,null,"Sep"]
[null,null,null,null,null,null,null,null,null,null,"Oct"]
[null,null,null,null,null,null,null,null,null,null,"Nov"]
[null,null,null,null,null,null,null,null,null,null,"Dec"]
[null,null,null,null,null,null,null,null,null,null,"Annual",{"$f":"AVERAGE(L52:L63)","v":{"$error":"#DIV/0!"}},{"$f":"MAX(M52:M63)","v":0},{"$f":"AVERAGE(N52:N63)","v":{"$error":"#DIV/0!"}},{"$f":"MAX(O52:O63)","v":0}]
[]
[null,null,null,null,null,null,null,null,null,{"$f":"+A5","v":2025},"mg/Nm3","Monthly mean of half-hourly averages","Highest half- hourly average","Monthly mean of  daily averages","Highest daily average"]
[null,null,null,null,null,null,null,null,null,"A5","Jan"]
[null,null,null,null,null,null,null,null,null,null,"Feb"]
[null,null,null,null,null,null,null,null,null,null,"Mar"]
[null,null,null,null,null,null,null,null,null,null,"Apr"]
[null,null,null,null,null,null,null,null,null,null,"May"]
[null,null,null,null,null,null,null,null,null,null,"Jun"]
[null,null,null,null,null,null,null,null,null,null,"Jul"]
[null,null,null,null,null,null,null,null,null,null,"Aug"]
[null,null,null,null,null,null,null,null,null,null,"Sep"]
[null,null,null,null,null,null,null,null,null,null,"Oct"]
[null,null,null,null,null,null,null,null,null,null,"Nov"]
[null,null,null,null,null,null,null,null,null,null,"Dec"]
[null,null,null,null,null,null,null,null,null,null,"Annual",{"$f":"AVERAGE(L67:L78)","v":{"$error":"#DIV/0!"}},{"$f":"MAX(M67:M78)","v":0},{"$f":"AVERAGE(N67:N78)","v":{"$error":"#DIV/0!"}},{"$f":"MAX(O67:O78)","v":0}]

{"sheet":"TOC","index":17,"n_rows":79,"n_cols":17,"rows_kept":79,"cut":false,"hidden":false,"merged":[[3,16,7,18],[9,16,11,18],[12,16,15,18],[66,9,78,9],[4,1,4,3],[4,4,4,6],[4,9,4,14],[6,9,18,9],[21,9,33,9],[36,9,48,9],[47,0,47,6],[48,0,51,6],[51,9,63,9]]}
[{"$f":"+'Cover Page'!$B$29","v":"Annual Performance Report 2025"},null,null,null,{"$f":"+'Cover Page'!$B$33","v":"Tyseley Energy from Waste Plant"}]
[]
["Monitoring of Total organic carbon emissions",null,null,"Whole Installation",null,null,"See  Notes in Cell Q3",null,null,{"$f":"+A3","v":"Monitoring of Total organic carbon emissions"},null,null,null,"Per Combustion Line",null,null,"Notes:"]
[null,null,null,null,null,null,null,null,null,null,null,null,null,null,null,null,"User to add logic to complete Whole installation, Table A5:G18. From the data in Per Combustion Line, Table J6:O79, subject to No. of lines installed"]
[{"$f":"+'Cover Page'!C39","v":2025},"1/2 Hourly Reference Periods",null,null,"Daily Reference Periods"]
["mg/Nm3","1/2 hourly TOC ELV","Monthly mean of half-hourly averages","Highest half- hourly average","Daily TOC ELV","Monthly mean of  daily averages","Highest daily average",null,null,{"$f":"+A5","v":2025},"mg/Nm3","Monthly mean of half-hourly averages","Highest half- hourly average","Monthly mean of  daily averages","Highest daily average"]
["Jan",20,{"$f":"IF(L7=\"\",\"\",AVERAGE(L7,L22))","v":1.25},{"$f":"IF(M7=\"\",\"\",AVERAGE(M7,M22))","v":9.75},10,{"$f":"IF(N7=\"\",\"\",AVERAGE(N7,N22))","v":1.1499999999999999},{"$f":"IF(O7=\"\",\"\",AVERAGE(O7,O22))","v":1.6500000000000001},null,null,"A1","Jan",0.6,12.8,0.5,1.1000000000000001]
["Feb",20,{"$f":"IF(L8=\"\",\"\",AVERAGE(L8,L23))","v":1.2},{"$f":"IF(M8=\"\",\"\",AVERAGE(M8,M23))","v":10.199999999999999},10,{"$f":"IF(N8=\"\",\"\",AVERAGE(N8,N23))","v":1.1499999999999999},{"$f":"IF(O8=\"\",\"\",AVERAGE(O8,O23))","v":1.45},null,null,null,"Feb",0.6,11.2,0.6,1]
["Mar",20,1.25,13.5,10,1.2,1.85,null,null,null,"Mar",0.6,16.2,0.6,1.1000000000000001,null,"Whole Installation table A5:G18:"]
["Apr",20,0.4,9.5500000000000007,10,0.4,0.8,null,null,null,"Apr",0.5,11.9,0.5,0.7,null,"Mean: for 1/2 hourly and daily periods calculate mean of values across all operational combustion lines for the month"]
["May",20,0.30000000000000004,13.350000000000001,10,0.30000000000000004,1.05,null,null,null,"May",0.4,10.9,0.4,0.8]
["Jun",20,0.4,9.4,10,0.35,1.75,null,null,null,"Jun",0.6,9.9,0.6,2.9]
["Jul",20,0.4,11.7,10,0.30000000000000004,0.6,null,null,null,"Jul",0.4,11.2,0.4,0.7,null,"Maximum: for 1/2 hourly and daily periods use the highest value across all operational combustion lines for the month"]
["Aug",20,0.25,8.5500000000000007,10,0.2,0.8,null,null,null,"Aug",0.3,7.4,0.2,0.9]
["Sep",20,0.25,11.05,10,0.2,0.7,null,null,null,"Sep",0.2,12.1,0.1,0.6]
["Oct",20,0.25,9.1499999999999986,10,0.2,0.8,null,null,null,"Oct",0.3,8.1,0.2,0.8]
["Nov",20,0.3,9.5,10,0.25,1.1000000000000001,null,null,null,"Nov",0.3,12,0.2,1.5]
["Dec",20,0.25,15.55,10,0.25,0.64999999999999991,null,null,null,"Dec",0.2,18.100000000000001,0.2,0.6]
[null,null,null,null,null,null,null,null,null,null,"Annual",{"$f":"AVERAGE(L7:L18)","v":0.41666666666666657},{"$f":"MAX(M7:M18)","v":18.100000000000001},{"$f":"AVERAGE(N7:N18)","v":0.37500000000000006},{"$f":"MAX(O7:O18)","v":2.9}]
[]
[null,null,null,null,null,null,null,null,null,{"$f":"+A5","v":2025},"mg/Nm3","Monthly mean of half-hourly averages","Highest half- hourly average","Monthly mean of  daily averages","Highest daily average"]
[null,null,null,null,null,null,null,null,null,"A2","Jan",1.9,6.7,1.8,2.2000000000000002]
[null,null,null,null,null,null,null,null,null,null,"Feb",1.8,9.1999999999999993,1.7,1.9]
[null,null,null,null,null,null,null,null,null,null,"Mar",1.9,10.8,1.8,2.6]
[null,null,null,null,null,null,null,null,null,null,"Apr",0.3,7.2,0.3,0.9]
[null,null,null,null,null,null,null,null,null,null,"May",0.2,15.8,0.2,1.3]
[null,null,null,null,null,null,null,null,null,null,"Jun",0.2,8.9,0.1,0.6]
[null,null,null,null,null,null,null,null,null,null,"Jul",0.4,12.2,0.2,0.5]
[null,null,null,null,null,null,null,null,null,null,"Aug",0.2,9.6999999999999993,0.2,0.7]
[null,null,null,null,null,null,null,null,null,null,"Sep",0.3,10,0.3,0.8]
[null,null,null,null,null,null,null,null,null,null,"Oct",0.2,10.199999999999999,0.2,0.8]
[null,null,null,null,null,null,null,null,null,null,"Nov",0.3,7,0.3,0.7]
[null,null,null,null,null,null,null,null,null,null,"Dec",0.3,13,0.3,0.7]
[null,null,null,null,null,null,null,null,null,null,"Annual",{"$f":"AVERAGE(L22:L33)","v":0.66666666666666663},{"$f":"MAX(M22:M33)","v":15.8},{"$f":"AVERAGE(N22:N33)","v":0.61666666666666659},{"$f":"MAX(O22:O33)","v":2.6}]
[]
[null,null,null,null,null,null,null,null,null,{"$f":"+A5","v":2025},"mg/Nm3","Monthly mean of half-hourly averages","Highest half- hourly average","Monthly mean of  daily averages","Highest daily average"]
[null,null,null,null,null,null,null,null,null,"A3","Jan"]
[null,null,null,null,null,null,null,null,null,null,"Feb"]
[null,null,null,null,null,null,null,null,null,null,"Mar"]
[null,null,null,null,null,null,null,null,null,null,"Apr"]
[null,null,null,null,null,null,null,null,null,null,"May"]
[null,null,null,null,null,null,null,null,null,null,"Jun"]
[null,null,null,null,null,null,null,null,null,null,"Jul"]
[null,null,null,null,null,null,null,null,null,null,"Aug"]
[null,null,null,null,null,null,null,null,null,null,"Sep"]
[null,null,null,null,null,null,null,null,null,null,"Oct"]
[null,null,null,null,null,null,null,null,null,null,"Nov"]
["Comments :",null,null,null,null,null,null,null,null,null,"Dec"]
[null,null,null,null,null,null,null,null,null,null,"Annual",{"$f":"AVERAGE(L37:L48)","v":{"$error":"#DIV/0!"}},{"$f":"MAX(M37:M48)","v":0},{"$f":"AVERAGE(N37:N48)","v":{"$error":"#DIV/0!"}},{"$f":"MAX(O37:O48)","v":0}]
[]
[null,null,null,null,null,null,null,null,null,{"$f":"+A5","v":2025},"mg/Nm3","Monthly mean of half-hourly averages","Highest half- hourly average","Monthly mean of  daily averages","Highest daily average"]
[null,null,null,null,null,null,null,null,null,"A4","Jan"]
[null,null,null,null,null,null,null,null,null,null,"Feb"]
[null,null,null,null,null,null,null,null,null,null,"Mar"]
[null,null,null,null,null,null,null,null,null,null,"Apr"]
[null,null,null,null,null,null,null,null,null,null,"May"]
[null,null,null,null,null,null,null,null,null,null,"Jun"]
[null,null,null,null,null,null,null,null,null,null,"Jul"]
[null,null,null,null,null,null,null,null,null,null,"Aug"]
[null,null,null,null,null,null,null,null,null,null,"Sep"]
[null,null,null,null,null,null,null,null,null,null,"Oct"]
[null,null,null,null,null,null,null,null,null,null,"Nov"]
[null,null,null,null,null,null,null,null,null,null,"Dec"]
[null,null,null,null,null,null,null,null,null,null,"Annual",{"$f":"AVERAGE(L52:L63)","v":{"$error":"#DIV/0!"}},{"$f":"MAX(M52:M63)","v":0},{"$f":"AVERAGE(N52:N63)","v":{"$error":"#DIV/0!"}},{"$f":"MAX(O52:O63)","v":0}]
[]
[null,null,null,null,null,null,null,null,null,{"$f":"+A5","v":2025},"mg/Nm3","Monthly mean of half-hourly averages","Highest half- hourly average","Monthly mean of  daily averages","Highest daily average"]
[null,null,null,null,null,null,null,null,null,"A5","Jan"]
[null,null,null,null,null,null,null,null,null,null,"Feb"]
[null,null,null,null,null,null,null,null,null,null,"Mar"]
[null,null,null,null,null,null,null,null,null,null,"Apr"]
[null,null,null,null,null,null,null,null,null,null,"May"]
[null,null,null,null,null,null,null,null,null,null,"Jun"]
[null,null,null,null,null,null,null,null,null,null,"Jul"]
[null,null,null,null,null,null,null,null,null,null,"Aug"]
[null,null,null,null,null,null,null,null,null,null,"Sep"]
[null,null,null,null,null,null,null,null,null,null,"Oct"]
[null,null,null,null,null,null,null,null,null,null,"Nov"]
[null,null,null,null,null,null,null,null,null,null,"Dec"]
[null,null,null,null,null,null,null,null,null,null,"Annual",{"$f":"AVERAGE(L67:L78)","v":{"$error":"#DIV/0!"}},{"$f":"MAX(M67:M78)","v":0},{"$f":"AVERAGE(N67:N78)","v":{"$error":"#DIV/0!"}},{"$f":"MAX(O67:O78)","v":0}]

{"sheet":"Particulates","index":18,"n_rows":79,"n_cols":17,"rows_kept":79,"cut":false,"hidden":false,"merged":[[4,16,8,18],[10,16,12,18],[13,16,16,18],[66,9,78,9],[4,1,4,3],[4,4,4,6],[4,9,4,14],[6,9,18,9],[21,9,33,9],[36,9,48,9],[47,0,47,6],[48,0,51,6],[51,9,63,9],[18,4,18,6]]}
[{"$f":"+'Cover Page'!$B$29","v":"Annual Performance Report 2025"},null,null,null,{"$f":"+'Cover Page'!$B$33","v":"Tyseley Energy from Waste Plant"}]
[]
["Monitoring of Particulate matter emissions",null,null,"Whole Installation",null,null,"See  Notes in Cell Q3",null,null,{"$f":"+A3","v":"Monitoring of Particulate matter emissions"},null,null,null,"Per Combustion Line",null,null,"Notes:"]
[]
[{"$f":"+'Cover Page'!C39","v":2025},"1/2 Hourly Reference Periods",null,null,"Daily Reference Periods",null,null,null,null,null,null,null,null,null,null,null,"User to add logic to complete Whole installation, Table A5:G18. From the data in Per Combustion Line, Table J6:O79, subject to No. of lines installed"]
["mg/Nm3","1/2 hourly PM ELV","Monthly mean of half-hourly averages","Highest half- hourly average","Daily PM ELV","Monthly mean of  daily averages","Highest daily average",null,null,{"$f":"+A5","v":2025},"mg/Nm3","Monthly mean of half-hourly averages","Highest half- hourly average","Monthly mean of  daily averages","Highest daily average"]
["Jan",30,{"$f":"IF(L7=\"\",\"\",AVERAGE(L7,L22))","v":0.75},{"$f":"IF(M7=\"\",\"\",AVERAGE(M7,M22))","v":1.9},5,{"$f":"IF(N7=\"\",\"\",AVERAGE(N7,N22))","v":0.65},{"$f":"IF(O7=\"\",\"\",AVERAGE(O7,O22))","v":0.89999999999999991},null,null,"A1","Jan",0.4,1.8,0.3,0.6]
["Feb",30,{"$f":"IF(L8=\"\",\"\",AVERAGE(L8,L23))","v":0.6},{"$f":"IF(M8=\"\",\"\",AVERAGE(M8,M23))","v":1.4},5,{"$f":"IF(N8=\"\",\"\",AVERAGE(N8,N23))","v":0.55000000000000004},{"$f":"IF(O8=\"\",\"\",AVERAGE(O8,O23))","v":0.65},null,null,null,"Feb",0.3,0.7,0.3,0.4]
["Mar",30,0.7,1.7999999999999998,5,0.6,0.95000000000000007,null,null,null,"Mar",0.4,1.9,0.3,0.8]
["Apr",30,0.35,3.2,5,0.30000000000000004,0.5,null,null,null,"Apr",0.3,3.1,0.2,0.4,null,"Whole Installation table A5:G18:"]
["May",30,0.35,4.3,5,0.35,0.8,null,null,null,"May",0.3,7.9,0.3,1.1000000000000001,null,"Mean: for 1/2 hourly and daily periods calculate mean of values across all operational combustion lines for the month"]
["Jun",30,0.4,1.2000000000000002,5,0.30000000000000004,0.4,null,null,null,"Jun",0.3,0.8,0.2,0.3]
["Jul",30,0.35,2.4500000000000002,5,0.25,0.4,null,null,null,"Jul",0.3,2.4,0.2,0.4]
["Aug",30,0.4,2.8,5,0.35,0.6,null,null,null,"Aug",0.4,4.8,0.3,0.7,null,"Maximum: for 1/2 hourly and daily periods use the highest value across all operational combustion lines for the month"]
["Sep",30,0.4,0.64999999999999991,5,0.35,0.4,null,null,null,"Sep",0.3,0.6,0.3,0.3]
["Oct",30,0.35,0.7,5,0.30000000000000004,0.4,null,null,null,"Oct",0.3,0.7,0.2,0.3]
["Nov",30,0.5,1.1000000000000001,5,0.44999999999999996,0.7,null,null,null,"Nov",0.3,0.8,0.3,0.4]
["Dec",30,0.5,1.4,5,0.4,0.75,null,null,null,"Dec",0.3,0.5,0.2,0.3]
[null,null,null,null,null,null,null,null,null,null,"Annual",{"$f":"AVERAGE(L7:L18)","v":0.3249999999999999},{"$f":"MAX(M7:M18)","v":7.9},{"$f":"AVERAGE(N7:N18)","v":0.2583333333333333},{"$f":"MAX(O7:O18)","v":1.1000000000000001}]
[]
[null,null,null,null,null,null,null,null,null,{"$f":"+A5","v":2025},"mg/Nm3","Monthly mean of half-hourly averages","Highest half- hourly average","Monthly mean of  daily averages","Highest daily average"]
[null,null,null,null,null,null,null,null,null,"A2","Jan",1.1000000000000001,2,1,1.2]
[null,null,null,null,null,null,null,null,null,null,"Feb",0.9,2.1,0.8,0.9]
[null,null,null,null,null,null,null,null,null,null,"Mar",1,1.7,0.9,1.1000000000000001]
[null,null,null,null,null,null,null,null,null,null,"Apr",0.4,3.3,0.4,0.6]
[null,null,null,null,null,null,null,null,null,null,"May",0.4,0.7,0.4,0.5]
[null,null,null,null,null,null,null,null,null,null,"Jun",0.5,1.6,0.4,0.5]
[null,null,null,null,null,null,null,null,null,null,"Jul",0.4,2.5,0.3,0.4]
[null,null,null,null,null,null,null,null,null,null,"Aug",0.4,0.8,0.4,0.5]
[null,null,null,null,null,null,null,null,null,null,"Sep",0.5,0.7,0.4,0.5]
[null,null,null,null,null,null,null,null,null,null,"Oct",0.4,0.7,0.4,0.5]
[null,null,null,null,null,null,null,null,null,null,"Nov",0.7,1.4,0.6,1]
[null,null,null,null,null,null,null,null,null,null,"Dec",0.7,2.2999999999999998,0.6,1.2]
[null,null,null,null,null,null,null,null,null,null,"Annual",{"$f":"AVERAGE(L22:L33)","v":0.61666666666666681},{"$f":"MAX(M22:M33)","v":3.3},{"$f":"AVERAGE(N22:N33)","v":0.55000000000000004},{"$f":"MAX(O22:O33)","v":1.2}]
[]
[null,null,null,null,null,null,null,null,null,{"$f":"+A5","v":2025},"mg/Nm3","Monthly mean of half-hourly averages","Highest half- hourly average","Monthly mean of  daily averages","Highest daily average"]
[null,null,null,null,null,null,null,null,null,"A3","Jan"]
[null,null,null,null,null,null,null,null,null,null,"Feb"]
[null,null,null,null,null,null,null,null,null,null,"Mar"]
[null,null,null,null,null,null,null,null,null,null,"Apr"]
[null,null,null,null,null,null,null,null,null,null,"May"]
[null,null,null,null,null,null,null,null,null,null,"Jun"]
[null,null,null,null,null,null,null,null,null,null,"Jul"]
[null,null,null,null,null,null,null,null,null,null,"Aug"]
[null,null,null,null,null,null,null,null,null,null,"Sep"]
[null,null,null,null,null,null,null,null,null,null,"Oct"]
[null,null,null,null,null,null,null,null,null,null,"Nov"]
["Comments :",null,null,null,null,null,null,null,null,null,"Dec"]
[null,null,null,null,null,null,null,null,null,null,"Annual",{"$f":"AVERAGE(L37:L48)","v":{"$error":"#DIV/0!"}},{"$f":"MAX(M37:M48)","v":0},{"$f":"AVERAGE(N37:N48)","v":{"$error":"#DIV/0!"}},{"$f":"MAX(O37:O48)","v":0}]
[]
[null,null,null,null,null,null,null,null,null,{"$f":"+A5","v":2025},"mg/Nm3","Monthly mean of half-hourly averages","Highest half- hourly average","Monthly mean of  daily averages","Highest daily average"]
[null,null,null,null,null,null,null,null,null,"A4","Jan"]
[null,null,null,null,null,null,null,null,null,null,"Feb"]
[null,null,null,null,null,null,null,null,null,null,"Mar"]
[null,null,null,null,null,null,null,null,null,null,"Apr"]
[null,null,null,null,null,null,null,null,null,null,"May"]
[null,null,null,null,null,null,null,null,null,null,"Jun"]
[null,null,null,null,null,null,null,null,null,null,"Jul"]
[null,null,null,null,null,null,null,null,null,null,"Aug"]
[null,null,null,null,null,null,null,null,null,null,"Sep"]
[null,null,null,null,null,null,null,null,null,null,"Oct"]
[null,null,null,null,null,null,null,null,null,null,"Nov"]
[null,null,null,null,null,null,null,null,null,null,"Dec"]
[null,null,null,null,null,null,null,null,null,null,"Annual",{"$f":"AVERAGE(L52:L63)","v":{"$error":"#DIV/0!"}},{"$f":"MAX(M52:M63)","v":0},{"$f":"AVERAGE(N52:N63)","v":{"$error":"#DIV/0!"}},{"$f":"MAX(O52:O63)","v":0}]
[]
[null,null,null,null,null,null,null,null,null,{"$f":"+A5","v":2025},"mg/Nm3","Monthly mean of half-hourly averages","Highest half- hourly average","Monthly mean of  daily averages","Highest daily average"]
[null,null,null,null,null,null,null,null,null,"A5","Jan"]
[null,null,null,null,null,null,null,null,null,null,"Feb"]
[null,null,null,null,null,null,null,null,null,null,"Mar"]
[null,null,null,null,null,null,null,null,null,null,"Apr"]
[null,null,null,null,null,null,null,null,null,null,"May"]
[null,null,null,null,null,null,null,null,null,null,"Jun"]
[null,null,null,null,null,null,null,null,null,null,"Jul"]
[null,null,null,null,null,null,null,null,null,null,"Aug"]
[null,null,null,null,null,null,null,null,null,null,"Sep"]
[null,null,null,null,null,null,null,null,null,null,"Oct"]
[null,null,null,null,null,null,null,null,null,null,"Nov"]
[null,null,null,null,null,null,null,null,null,null,"Dec"]
[null,null,null,null,null,null,null,null,null,null,"Annual",{"$f":"AVERAGE(L67:L78)","v":{"$error":"#DIV/0!"}},{"$f":"MAX(M67:M78)","v":0},{"$f":"AVERAGE(N67:N78)","v":{"$error":"#DIV/0!"}},{"$f":"MAX(O67:O78)","v":0}]

{"sheet":"CO 0.5 hourly","index":19,"n_rows":82,"n_cols":17,"rows_kept":82,"cut":false,"hidden":true,"merged":[[4,0,5,6],[6,16,10,18],[12,16,14,18],[15,16,18,18],[69,9,81,9],[7,1,7,3],[7,4,7,6],[7,9,7,14],[9,9,21,9],[24,9,36,9],[39,9,51,9],[50,0,50,6],[51,0,54,6],[54,9,66,9]]}
[{"$f":"+'Cover Page'!$B$29","v":"Annual Performance Report 2025"},null,null,null,{"$f":"+'Cover Page'!$B$33","v":"Tyseley Energy from Waste Plant"}]
[]
["Monitoring of Carbon Monoxide (half hourly)",null,null,"Whole Installation",null,null,"See  Notes in Cell Q3",null,null,{"$f":"+A3","v":"Monitoring of Carbon Monoxide (half hourly)"},null,null,null,"Per Combustion Line",null,null,"Notes:"]
[]
["Please complete this tab for your plant if you have 1/2 hourly CO ELVs; otherwise, leave it blank and complete the CO 95% 10 min tab"]
[]
[null,null,null,null,null,null,null,null,null,null,null,null,null,null,null,null,"User to add logic to complete Whole installation, Table A5:G18. From the data in Per Combustion Line, Table J6:O79, subject to No. of lines installed"]
[{"$f":"+'Cover Page'!C39","v":2025},"1/2 Hourly Reference Periods",null,null,"Daily Reference Periods"]
["mg/Nm3","1/2 hourly CO ELV","Monthly mean of half-hourly averages","Highest half- hourly average","Daily CO ELV","Monthly mean of  daily averages","Highest daily average",null,null,{"$f":"+A8","v":2025},"mg/Nm3","Monthly mean of half-hourly averages","Highest half- hourly average","Monthly mean of  daily averages","Highest daily average"]
["Jan",100,null,null,50,null,null,null,null,"A1","Jan"]
["Feb",{"$f":"+B10","v":100},null,null,{"$f":"+E10","v":50},null,null,null,null,null,"Feb"]
["Mar",{"$f":"+B11","v":100},null,null,{"$f":"+E11","v":50},null,null,null,null,null,"Mar",null,null,null,null,null,"Whole Installation table A5:G18:"]
["Apr",100,null,null,50,null,null,null,null,null,"Apr",null,null,null,null,null,"Mean: for 1/2 hourly and daily periods calculate mean of values across all operational combustion lines for the month"]
["May",100,null,null,50,null,null,null,null,null,"May"]
["Jun",100,null,null,50,null,null,null,null,null,"Jun"]
["Jul",100,null,null,50,null,null,null,null,null,"Jul",null,null,null,null,null,"Maximum: for 1/2 hourly and daily periods use the highest value across all operational combustion lines for the month"]
["Aug",100,null,null,50,null,null,null,null,null,"Aug"]
["Sep",100,null,null,50,null,null,null,null,null,"Sep"]
["Oct",100,null,null,50,null,null,null,null,null,"Oct"]
["Nov",100,null,null,50,null,null,null,null,null,"Nov"]
["Dec",100,null,null,50,null,null,null,null,null,"Dec"]
[null,null,null,null,null,null,null,null,null,null,"Annual",{"$f":"AVERAGE(L10:L21)","v":{"$error":"#DIV/0!"}},{"$f":"MAX(M10:M21)","v":0},{"$f":"AVERAGE(N10:N21)","v":{"$error":"#DIV/0!"}},{"$f":"MAX(O10:O21)","v":0}]
[]
[null,null,null,null,null,null,null,null,null,{"$f":"+A8","v":2025},"mg/Nm3","Monthly mean of half-hourly averages","Highest half- hourly average","Monthly mean of  daily averages","Highest daily average"]
[null,null,null,null,null,null,null,null,null,"A2","Jan"]
[null,null,null,null,null,null,null,null,null,null,"Feb"]
[null,null,null,null,null,null,null,null,null,null,"Mar"]
[null,null,null,null,null,null,null,null,null,null,"Apr"]
[null,null,null,null,null,null,null,null,null,null,"May"]
[null,null,null,null,null,null,null,null,null,null,"Jun"]
[null,null,null,null,null,null,null,null,null,null,"Jul"]
[null,null,null,null,null,null,null,null,null,null,"Aug"]
[null,null,null,null,null,null,null,null,null,null,"Sep"]
[null,null,null,null,null,null,null,null,null,null,"Oct"]
[null,null,null,null,null,null,null,null,null,null,"Nov"]
[null,null,null,null,null,null,null,null,null,null,"Dec"]
[null,null,null,null,null,null,null,null,null,null,"Annual",{"$f":"AVERAGE(L25:L36)","v":{"$error":"#DIV/0!"}},{"$f":"MAX(M25:M36)","v":0},{"$f":"AVERAGE(N25:N36)","v":{"$error":"#DIV/0!"}},{"$f":"MAX(O25:O36)","v":0}]
[]
[null,null,null,null,null,null,null,null,null,{"$f":"+A8","v":2025},"mg/Nm3","Monthly mean of half-hourly averages","Highest half- hourly average","Monthly mean of  daily averages","Highest daily average"]
[null,null,null,null,null,null,null,null,null,"A3","Jan"]
[null,null,null,null,null,null,null,null,null,null,"Feb"]
[null,null,null,null,null,null,null,null,null,null,"Mar"]
[null,null,null,null,null,null,null,null,null,null,"Apr"]
[null,null,null,null,null,null,null,null,null,null,"May"]
[null,null,null,null,null,null,null,null,null,null,"Jun"]
[null,null,null,null,null,null,null,null,null,null,"Jul"]
[null,null,null,null,null,null,null,null,null,null,"Aug"]
[null,null,null,null,null,null,null,null,null,null,"Sep"]
[null,null,null,null,null,null,null,null,null,null,"Oct"]
[null,null,null,null,null,null,null,null,null,null,"Nov"]
["Comments :",null,null,null,null,null,null,null,null,null,"Dec"]
[null,null,null,null,null,null,null,null,null,null,"Annual",{"$f":"AVERAGE(L40:L51)","v":{"$error":"#DIV/0!"}},{"$f":"MAX(M40:M51)","v":0},{"$f":"AVERAGE(N40:N51)","v":{"$error":"#DIV/0!"}},{"$f":"MAX(O40:O51)","v":0}]
[]
[null,null,null,null,null,null,null,null,null,{"$f":"+A8","v":2025},"mg/Nm3","Monthly mean of half-hourly averages","Highest half- hourly average","Monthly mean of  daily averages","Highest daily average"]
[null,null,null,null,null,null,null,null,null,"A4","Jan"]
[null,null,null,null,null,null,null,null,null,null,"Feb"]
[null,null,null,null,null,null,null,null,null,null,"Mar"]
[null,null,null,null,null,null,null,null,null,null,"Apr"]
[null,null,null,null,null,null,null,null,null,null,"May"]
[null,null,null,null,null,null,null,null,null,null,"Jun"]
[null,null,null,null,null,null,null,null,null,null,"Jul"]
[null,null,null,null,null,null,null,null,null,null,"Aug"]
[null,null,null,null,null,null,null,null,null,null,"Sep"]
[null,null,null,null,null,null,null,null,null,null,"Oct"]
[null,null,null,null,null,null,null,null,null,null,"Nov"]
[null,null,null,null,null,null,null,null,null,null,"Dec"]
[null,null,null,null,null,null,null,null,null,null,"Annual",{"$f":"AVERAGE(L55:L66)","v":{"$error":"#DIV/0!"}},{"$f":"MAX(M55:M66)","v":0},{"$f":"AVERAGE(N55:N66)","v":{"$error":"#DIV/0!"}},{"$f":"MAX(O55:O66)","v":0}]
[]
[null,null,null,null,null,null,null,null,null,{"$f":"+A8","v":2025},"mg/Nm3","Monthly mean of half-hourly averages","Highest half- hourly average","Monthly mean of  daily averages","Highest daily average"]
[null,null,null,null,null,null,null,null,null,"A5","Jan"]
[null,null,null,null,null,null,null,null,null,null,"Feb"]
[null,null,null,null,null,null,null,null,null,null,"Mar"]
[null,null,null,null,null,null,null,null,null,null,"Apr"]
[null,null,null,null,null,null,null,null,null,null,"May"]
[null,null,null,null,null,null,null,null,null,null,"Jun"]
[null,null,null,null,null,null,null,null,null,null,"Jul"]
[null,null,null,null,null,null,null,null,null,null,"Aug"]
[null,null,null,null,null,null,null,null,null,null,"Sep"]
[null,null,null,null,null,null,null,null,null,null,"Oct"]
[null,null,null,null,null,null,null,null,null,null,"Nov"]
[null,null,null,null,null,null,null,null,null,null,"Dec"]
[null,null,null,null,null,null,null,null,null,null,"Annual",{"$f":"AVERAGE(L70:L81)","v":{"$error":"#DIV/0!"}},{"$f":"MAX(M70:M81)","v":0},{"$f":"AVERAGE(N70:N81)","v":{"$error":"#DIV/0!"}},{"$f":"MAX(O70:O81)","v":0}]

{"sheet":"CO 95% 10 min","index":20,"n_rows":82,"n_cols":19,"rows_kept":82,"cut":false,"hidden":false,"merged":[[4,0,5,7],[6,18,10,20],[12,18,14,20],[15,18,18,20],[69,10,81,10],[7,1,7,4],[7,5,7,7],[7,10,7,16],[9,10,21,10],[24,10,36,10],[39,10,51,10],[50,0,50,7],[51,0,54,7],[54,10,66,10]]}
[{"$f":"+'Cover Page'!$B$29","v":"Annual Performance Report 2025"},null,null,null,{"$f":"+'Cover Page'!$B$33","v":"Tyseley Energy from Waste Plant"}]
[]
["Monitoring of Carbon Monoxide (10-minute avg)",null,null,null,"Whole Installation",null,null,"See  Notes in Cell S3",null,{"$f":"+A3","v":"Monitoring of Carbon Monoxide (10-minute avg)"},null,null,null,null,"Per Combustion Line",null,"Notes:",null,"Notes:"]
[]
["Please complete this tab for your plant if you have 10-minute average CO ELVs; otherwise, leave it blank and complete the CO 0.5 hourly tab"]
[]
[null,null,null,null,null,null,null,null,null,null,null,null,null,null,null,null,null,null,"User to add logic to complete Whole installation, Table A5:H18. From the data in Per Combustion Line, Table K6:Q79, subject to No. of lines installed"]
[{"$f":"+'Cover Page'!C39","v":2025},"10-minute Reference Periods",null,null,null,"Daily Reference Periods"]
["mg/Nm3","95%ile 10-min avg CO ELV","Highest daily 95%ile 10-min average","Monthly mean of 10-min averages","Highest 10-min average","Daily CO ELV","Monthly mean of  daily averages","Highest daily average",null,null,{"$f":"+A8","v":2025},"mg/Nm3","Highest daily 95%ile 10-min average","Monthly mean of 10-min averages","Highest 10-min average","Monthly mean of  daily averages","Highest daily average"]
["Jan",150,{"$f":"IF(M10=\"\",\"\",AVERAGE(M10,M25))","v":51.45},{"$f":"IF(N10=\"\",\"\",AVERAGE(N10,N25))","v":10.3},{"$f":"IF(O10=\"\",\"\",AVERAGE(O10,O25))","v":459.95},50,{"$f":"IF(P10=\"\",\"\",AVERAGE(P10,P25))","v":10.050000000000001},{"$f":"IF(Q10=\"\",\"\",AVERAGE(Q10,Q25))","v":15.3},null,null,"A1","Jan",53.5,11.6,463,11.3,16]
["Feb",{"$f":"+B10","v":150},{"$f":"IF(M11=\"\",\"\",AVERAGE(M11,M26))","v":68.8},{"$f":"IF(N11=\"\",\"\",AVERAGE(N11,N26))","v":9.75},{"$f":"IF(O11=\"\",\"\",AVERAGE(O11,O26))","v":554.5},{"$f":"+F10","v":50},{"$f":"IF(P11=\"\",\"\",AVERAGE(P11,P26))","v":9.65},{"$f":"IF(Q11=\"\",\"\",AVERAGE(Q11,Q26))","v":17.549999999999997},null,null,null,"Feb",71.5,10.3,421.6,10.3,19.399999999999999]
["Mar",{"$f":"+B11","v":150},41.3,9.4,849.6,{"$f":"+F11","v":50},9.25,17.600000000000001,null,null,null,"Mar",48.8,10.5,1243.9000000000001,10.199999999999999,21.4,null,"Whole Installation table A5:H18:"]
["Apr",150,58.5,8.9499999999999993,922.5,50,8.9,19.850000000000001,null,null,null,"Apr",22.7,8.4,582.1,8.3000000000000007,12.6,null,"Mean: for 10-min and daily periods use average of all operational combustion lines."]
["May",150,74.849999999999994,9.65,794.05,50,9.6,20.65,null,null,null,"May",73.3,9.8000000000000007,972.5,9.6999999999999993,23]
["Jun",150,101.05000000000001,10.75,487.9,50,10.8,22.35,null,null,null,"Jun",95.7,11.3,414.5,11.3,21.1]
["Jul",150,107.45,16.850000000000001,639.65000000000009,50,16.899999999999999,25.65,null,null,null,"Jul",116.5,18.7,403.1,18.7,28.2,null,"Maximum: for 10-min and daily periods use the highest of all operational combustion lines in any month."]
["Aug",150,103.75,12.100000000000001,534.20000000000005,50,12.100000000000001,24,null,null,null,"Aug",91.1,12.8,277.7,12.8,23.1]
["Sep",150,90.6,13.600000000000001,356.45,50,13.600000000000001,22.950000000000003,null,null,null,"Sep",54,11.1,240.9,11.1,18.8]
["Oct",150,83.25,12.95,730.85,50,12.9,21.700000000000003,null,null,null,"Oct",101,13.4,467.7,13.3,23.6]
["Nov",150,87.75,14.6,359.6,50,14.55,23.5,null,null,null,"Nov",80.099999999999994,14.2,206.2,14.2,19.8]
["Dec",150,78.2,11.9,832.75,50,11.85,23.15,null,null,null,"Dec",76.5,11.8,1429,11.7,23.7]
[null,null,null,null,null,null,null,null,null,null,null,"Annual",{"$f":"AVERAGE(M10:M21)","v":73.725000000000009},{"$f":"AVERAGE(N10:N21)","v":11.991666666666667},{"$f":"MAX(O10:O21)","v":1429},{"$f":"AVERAGE(P10:P21)","v":11.908333333333331},{"$f":"MAX(Q10:Q21)","v":28.2}]
[]
[null,null,null,null,null,null,null,null,null,null,{"$f":"+A8","v":2025},"mg/Nm3","Highest daily 95%ile 10-min average","Monthly mean of 10-min averages","Highest 10-min average","Monthly mean of  daily averages","Highest daily average"]
[null,null,null,null,null,null,null,null,null,null,"A2","Jan",49.4,9,456.9,8.8000000000000007,14.6]
[null,null,null,null,null,null,null,null,null,null,null,"Feb",66.099999999999994,9.1999999999999993,687.4,9,15.7]
[null,null,null,null,null,null,null,null,null,null,null,"Mar",33.799999999999997,8.3000000000000007,455.3,8.3000000000000007,13.8]
[null,null,null,null,null,null,null,null,null,null,null,"Apr",94.3,9.5,1262.9000000000001,9.5,27.1]
[null,null,null,null,null,null,null,null,null,null,null,"May",76.400000000000006,9.5,615.6,9.5,18.3]
[null,null,null,null,null,null,null,null,null,null,null,"Jun",106.4,10.199999999999999,561.29999999999995,10.3,23.6]
[null,null,null,null,null,null,null,null,null,null,null,"Jul",98.4,15,876.2,15.1,23.1]
[null,null,null,null,null,null,null,null,null,null,null,"Aug",116.4,11.4,790.7,11.4,24.9]
[null,null,null,null,null,null,null,null,null,null,null,"Sep",127.2,16.100000000000001,472,16.100000000000001,27.1]
[null,null,null,null,null,null,null,null,null,null,null,"Oct",65.5,12.5,994,12.5,19.8]
[null,null,null,null,null,null,null,null,null,null,null,"Nov",95.4,15,513,14.9,27.2]
[null,null,null,null,null,null,null,null,null,null,null,"Dec",79.900000000000006,12,236.5,12,22.6]
[null,null,null,null,null,null,null,null,null,null,null,"Annual",{"$f":"AVERAGE(M25:M36)","v":84.1},{"$f":"AVERAGE(N25:N36)","v":11.475000000000001},{"$f":"MAX(O25:O36)","v":1262.9000000000001},{"$f":"AVERAGE(P25:P36)","v":11.450000000000001},{"$f":"MAX(Q25:Q36)","v":27.2}]
[]
[null,null,null,null,null,null,null,null,null,null,{"$f":"+A8","v":2025},"mg/Nm3","Highest daily 95%ile 10-min average","Monthly mean of 10-min averages","Highest 10-min average","Monthly mean of  daily averages","Highest daily average"]
[null,null,null,null,null,null,null,null,null,null,"A3","Jan"]
[null,null,null,null,null,null,null,null,null,null,null,"Feb"]
[null,null,null,null,null,null,null,null,null,null,null,"Mar"]
[null,null,null,null,null,null,null,null,null,null,null,"Apr"]
[null,null,null,null,null,null,null,null,null,null,null,"May"]
[null,null,null,null,null,null,null,null,null,null,null,"Jun"]
[null,null,null,null,null,null,null,null,null,null,null,"Jul"]
[null,null,null,null,null,null,null,null,null,null,null,"Aug"]
[null,null,null,null,null,null,null,null,null,null,null,"Sep"]
[null,null,null,null,null,null,null,null,null,null,null,"Oct"]
[null,null,null,null,null,null,null,null,null,null,null,"Nov"]
["Comments :",null,null,null,null,null,null,null,null,null,null,"Dec"]
["Environment Agency explanatory note: The 10-minute average ELV is based on the “95th percentile”. In this case this means that 95% of the 10 minute averages in the relevant 24-hour period (i.e. 137) must be below 150 mg/Nm3, and 5% (i.e. 7) are allowed to be any value above 150 mg/Nm3. Whilst we expect operators to minimise CO emissions at all times, it is perfectly acceptable for the value of the maximum 10-minute average to be above 150 mg/Nm3, provided the 95th percentile ELV has been met for that period. ",null,null,null,null,null,null,null,null,null,null,"Annual",{"$f":"AVERAGE(M40:M51)","v":{"$error":"#DIV/0!"}},null,{"$f":"MAX(O40:O51)","v":0},{"$f":"AVERAGE(P40:P51)","v":{"$error":"#DIV/0!"}},{"$f":"MAX(Q40:Q51)","v":0}]
[]
[null,null,null,null,null,null,null,null,null,null,{"$f":"+A8","v":2025},"mg/Nm3","Highest daily 95%ile 10-min average","Monthly mean of 10-min averages","Highest 10-min average","Monthly mean of  daily averages","Highest daily average"]
[null,null,null,null,null,null,null,null,null,null,"A4","Jan"]
[null,null,null,null,null,null,null,null,null,null,null,"Feb"]
[null,null,null,null,null,null,null,null,null,null,null,"Mar"]
[null,null,null,null,null,null,null,null,null,null,null,"Apr"]
[null,null,null,null,null,null,null,null,null,null,null,"May"]
[null,null,null,null,null,null,null,null,null,null,null,"Jun"]
[null,null,null,null,null,null,null,null,null,null,null,"Jul"]
[null,null,null,null,null,null,null,null,null,null,null,"Aug"]
[null,null,null,null,null,null,null,null,null,null,null,"Sep"]
[null,null,null,null,null,null,null,null,null,null,null,"Oct"]
[null,null,null,null,null,null,null,null,null,null,null,"Nov"]
[null,null,null,null,null,null,null,null,null,null,null,"Dec"]
[null,null,null,null,null,null,null,null,null,null,null,"Annual",{"$f":"AVERAGE(M55:M66)","v":{"$error":"#DIV/0!"}},null,{"$f":"MAX(O55:O66)","v":0},{"$f":"AVERAGE(P55:P66)","v":{"$error":"#DIV/0!"}},{"$f":"MAX(Q55:Q66)","v":0}]
[]
[null,null,null,null,null,null,null,null,null,null,{"$f":"+A8","v":2025},"mg/Nm3","95%ile 10-min avg maximum","Monthly CO 10-min avg mean","10-min avg maximum","Monthly daily mean","Monthly daily maximum"]
[null,null,null,null,null,null,null,null,null,null,"A5","Jan"]
[null,null,null,null,null,null,null,null,null,null,null,"Feb"]
[null,null,null,null,null,null,null,null,null,null,null,"Mar"]
[null,null,null,null,null,null,null,null,null,null,null,"Apr"]
[null,null,null,null,null,null,null,null,null,null,null,"May"]
[null,null,null,null,null,null,null,null,null,null,null,"Jun"]
[null,null,null,null,null,null,null,null,null,null,null,"Jul"]
[null,null,null,null,null,null,null,null,null,null,null,"Aug"]
[null,null,null,null,null,null,null,null,null,null,null,"Sep"]
[null,null,null,null,null,null,null,null,null,null,null,"Oct"]
[null,null,null,null,null,null,null,null,null,null,null,"Nov"]
[null,null,null,null,null,null,null,null,null,null,null,"Dec"]
[null,null,null,null,null,null,null,null,null,null,null,"Annual",{"$f":"AVERAGE(M70:M81)","v":{"$error":"#DIV/0!"}},null,{"$f":"MAX(O70:O81)","v":0},{"$f":"AVERAGE(P70:P81)","v":{"$error":"#DIV/0!"}},{"$f":"MAX(Q70:Q81)","v":0}]

{"sheet":"NH3","index":21,"n_rows":79,"n_cols":17,"rows_kept":79,"cut":false,"hidden":false,"merged":[[3,16,7,18],[9,16,11,18],[12,16,15,18],[66,9,78,9],[4,1,4,3],[4,4,4,6],[4,9,4,14],[6,9,18,9],[21,9,33,9],[36,9,48,9],[47,0,47,6],[48,0,51,6],[51,9,63,9],[18,4,18,6]]}
[{"$f":"+'Cover Page'!$B$29","v":"Annual Performance Report 2025"},null,null,null,{"$f":"+'Cover Page'!$B$33","v":"Tyseley Energy from Waste Plant"}]
[]
["Monitoring of Ammnonia emissions ",null,null,"Whole Installation",null,null,"See  Notes in Cell Q3",null,null,{"$f":"+A3","v":"Monitoring of Ammnonia emissions "},null,null,null,"Per Combustion Line",null,null,"Notes:"]
[null,null,null,null,null,null,null,null,null,null,null,null,null,null,null,null,"User to add logic to complete Whole installation, Table A5:G18. From the data in Per Combustion Line, Table J6:O79, subject to No. of lines installed"]
[{"$f":"+'Cover Page'!C39","v":2025},"1/2 Hourly Reference Periods",null,null,"Daily Reference Periods"]
["mg/Nm3","1/2 hourly NH3 ELV","Monthly mean of half-hourly averages","Highest half- hourly average","Daily NH3 ELV","Monthly mean of  daily averages","Highest daily average",null,null,{"$f":"+A5","v":2025},"mg/Nm3","Monthly mean of half-hourly averages","Highest half- hourly average","Monthly mean of  daily averages","Highest daily average"]
["Jan","None",{"$f":"IF(L7=\"\",\"\",AVERAGE(L7,L22))","v":1.05},{"$f":"IF(M7=\"\",\"\",AVERAGE(M7,M22))","v":7.9},15,{"$f":"IF(N7=\"\",\"\",AVERAGE(N7,N22))","v":0.9},{"$f":"IF(O7=\"\",\"\",AVERAGE(O7,O22))","v":1.7},null,null,"A1","Jan",1,8.1,0.9,1.7]
["Feb",{"$f":"+B7","v":"None"},{"$f":"IF(L8=\"\",\"\",AVERAGE(L8,L23))","v":0.9},{"$f":"IF(M8=\"\",\"\",AVERAGE(M8,M23))","v":14},15,{"$f":"IF(N8=\"\",\"\",AVERAGE(N8,N23))","v":0.8},{"$f":"IF(O8=\"\",\"\",AVERAGE(O8,O23))","v":1.5499999999999998},null,null,null,"Feb",0.8,19.3,0.7,1.7]
["Mar",{"$f":"+B8","v":"None"},0.8,6.35,15,0.8,1.4,null,null,null,"Mar",0.7,3.8,0.7,1.2,null,"Whole Installation table A5:G18:"]
["Apr","None",0.2,8.6499999999999986,15,0.15000000000000002,0.9,null,null,null,"Apr",0.3,9.6999999999999993,0.2,0.9,null,"Mean: for 1/2 hourly and daily periods calculate mean of values across all operational combustion lines for the month"]
["May","None",0.35,10.85,15,0.35,1.4500000000000002,null,null,null,"May",0.5,16.899999999999999,0.5,1.6]
["Jun","None",0.5,7.3999999999999995,15,0.45,2.15,null,null,null,"Jun",0.6,6.6,0.5,2.2999999999999998]
["Jul","None",4.2,25.4,15,4.0999999999999996,10.6,null,null,null,"Jul",4.8,38.4,4.7,14.1,null,"Maximum: for 1/2 hourly and daily periods use the highest value across all operational combustion lines for the month"]
["Aug","None",1.5499999999999998,9.35,15,1.4500000000000002,3.25,null,null,null,"Aug",1.7,12.7,1.6,4.3]
["Sep","None",1,8.8000000000000007,15,0.95000000000000007,2.6,null,null,null,"Sep",1.1000000000000001,7.5,1.1000000000000001,2.6]
["Oct","None",0.2,3.35,15,0.2,0.60000000000000009,null,null,null,"Oct",0.3,4.4000000000000004,0.3,0.8]
["Nov","None",1.35,10,15,1.3,3.15,null,null,null,"Nov",1.3,11.7,1.3,3.4]
["Dec","None",0.45,8.9499999999999993,15,0.45,1.5,null,null,null,"Dec",0.4,8.4,0.4,1.2]
[null,null,null,null,null,null,null,null,null,null,"Annual",{"$f":"AVERAGE(L7:L18)","v":1.125},{"$f":"MAX(M7:M18)","v":38.4},{"$f":"AVERAGE(N7:N18)","v":1.075},{"$f":"MAX(O7:O18)","v":14.1}]
[]
[null,null,null,null,null,null,null,null,null,{"$f":"+A5","v":2025},"mg/Nm3","Monthly mean of half-hourly averages","Highest half- hourly average","Monthly mean of  daily averages","Highest daily average"]
[null,null,null,null,null,null,null,null,null,"A2","Jan",1.1000000000000001,7.7,0.9,1.7]
[null,null,null,null,null,null,null,null,null,null,"Feb",1,8.6999999999999993,0.9,1.4]
[null,null,null,null,null,null,null,null,null,null,"Mar",0.9,8.9,0.9,1.6]
[null,null,null,null,null,null,null,null,null,null,"Apr",0.1,7.6,0.1,0.9]
[null,null,null,null,null,null,null,null,null,null,"May",0.2,4.8,0.2,1.3]
[null,null,null,null,null,null,null,null,null,null,"Jun",0.4,8.1999999999999993,0.4,2]
[null,null,null,null,null,null,null,null,null,null,"Jul",3.6,12.4,3.5,7.1]
[null,null,null,null,null,null,null,null,null,null,"Aug",1.4,6,1.3,2.2000000000000002]
[null,null,null,null,null,null,null,null,null,null,"Sep",0.9,10.1,0.8,2.6]
[null,null,null,null,null,null,null,null,null,null,"Oct",0.1,2.2999999999999998,0.1,0.4]
[null,null,null,null,null,null,null,null,null,null,"Nov",1.4,8.3000000000000007,1.3,2.9]
[null,null,null,null,null,null,null,null,null,null,"Dec",0.5,9.5,0.5,1.8]
[null,null,null,null,null,null,null,null,null,null,"Annual",{"$f":"AVERAGE(L22:L33)","v":0.96666666666666679},{"$f":"MAX(M22:M33)","v":12.4},{"$f":"AVERAGE(N22:N33)","v":0.90833333333333355},{"$f":"MAX(O22:O33)","v":7.1}]
[]
[null,null,null,null,null,null,null,null,null,{"$f":"+A5","v":2025},"mg/Nm3","Monthly mean of half-hourly averages","Highest half- hourly average","Monthly mean of  daily averages","Highest daily average"]
[null,null,null,null,null,null,null,null,null,"A3","Jan"]
[null,null,null,null,null,null,null,null,null,null,"Feb"]
[null,null,null,null,null,null,null,null,null,null,"Mar"]
[null,null,null,null,null,null,null,null,null,null,"Apr"]
[null,null,null,null,null,null,null,null,null,null,"May"]
[null,null,null,null,null,null,null,null,null,null,"Jun"]
[null,null,null,null,null,null,null,null,null,null,"Jul"]
[null,null,null,null,null,null,null,null,null,null,"Aug"]
[null,null,null,null,null,null,null,null,null,null,"Sep"]
[null,null,null,null,null,null,null,null,null,null,"Oct"]
[null,null,null,null,null,null,null,null,null,null,"Nov"]
["Comments :",null,null,null,null,null,null,null,null,null,"Dec"]
["An indicated ELV value of zero in the table above means that no ammonia limit is/was set in the permit.  ",null,null,null,null,null,null,null,null,null,"Annual",{"$f":"AVERAGE(L37:L48)","v":{"$error":"#DIV/0!"}},{"$f":"MAX(M37:M48)","v":0},{"$f":"AVERAGE(N37:N48)","v":{"$error":"#DIV/0!"}},{"$f":"MAX(O37:O48)","v":0}]
[]
[null,null,null,null,null,null,null,null,null,{"$f":"+A5","v":2025},"mg/Nm3","Monthly mean of half-hourly averages","Highest half- hourly average","Monthly mean of  daily averages","Highest daily average"]
[null,null,null,null,null,null,null,null,null,"A4","Jan"]
[null,null,null,null,null,null,null,null,null,null,"Feb"]
[null,null,null,null,null,null,null,null,null,null,"Mar"]
[null,null,null,null,null,null,null,null,null,null,"Apr"]
[null,null,null,null,null,null,null,null,null,null,"May"]
[null,null,null,null,null,null,null,null,null,null,"Jun"]
[null,null,null,null,null,null,null,null,null,null,"Jul"]
[null,null,null,null,null,null,null,null,null,null,"Aug"]
[null,null,null,null,null,null,null,null,null,null,"Sep"]
[null,null,null,null,null,null,null,null,null,null,"Oct"]
[null,null,null,null,null,null,null,null,null,null,"Nov"]
[null,null,null,null,null,null,null,null,null,null,"Dec"]
[null,null,null,null,null,null,null,null,null,null,"Annual",{"$f":"AVERAGE(L52:L63)","v":{"$error":"#DIV/0!"}},{"$f":"MAX(M52:M63)","v":0},{"$f":"AVERAGE(N52:N63)","v":{"$error":"#DIV/0!"}},{"$f":"MAX(O52:O63)","v":0}]
[]
[null,null,null,null,null,null,null,null,null,{"$f":"+A5","v":2025},"mg/Nm3","Monthly mean of half-hourly averages","Highest half- hourly average","Monthly mean of  daily averages","Highest daily average"]
[null,null,null,null,null,null,null,null,null,"A5","Jan"]
[null,null,null,null,null,null,null,null,null,null,"Feb"]
[null,null,null,null,null,null,null,null,null,null,"Mar"]
[null,null,null,null,null,null,null,null,null,null,"Apr"]
[null,null,null,null,null,null,null,null,null,null,"May"]
[null,null,null,null,null,null,null,null,null,null,"Jun"]
[null,null,null,null,null,null,null,null,null,null,"Jul"]
[null,null,null,null,null,null,null,null,null,null,"Aug"]
[null,null,null,null,null,null,null,null,null,null,"Sep"]
[null,null,null,null,null,null,null,null,null,null,"Oct"]
[null,null,null,null,null,null,null,null,null,null,"Nov"]
[null,null,null,null,null,null,null,null,null,null,"Dec"]
[null,null,null,null,null,null,null,null,null,null,"Annual",{"$f":"AVERAGE(L67:L78)","v":{"$error":"#DIV/0!"}},{"$f":"MAX(M67:M78)","v":0},{"$f":"AVERAGE(N67:N78)","v":{"$error":"#DIV/0!"}},{"$f":"MAX(O67:O78)","v":0}]

{"sheet":"Template changes log","index":22,"n_rows":23,"n_cols":3,"rows_kept":23,"cut":false,"hidden":false,"merged":[]}
["Log of changes to template (Environment Agency use only)"]
[]
["Date","Description of change","New version number and date"]
["2024-01-16","Air (periodic) tab: corrected default O2 reference from 6 to 11% ","Version 23.5a (for incinerators) - 16/01/2024"]
["2024-09-23","Air (periodic) tab: corrected symbol for Thallium to Tl"]
["2024-09-23","Air (periodic) tab: removed last year's references to different emission limit values applying from 03/12/23 and updated all relevant ELVs"]
["2024-09-23","Tabs for continuously monitored pollutants (HCl, SO2 etc.): changed terminology in table headings to improve clarity"]
["2024-09-23","Tabs for continuously monitored pollutants (HCl, SO2 etc.): removed last year's references to different emission limit values applying from 03/12/23 and updated all relevant ELVs"]
["2024-09-23","Perf 1 tab: updated formula for water usage to report m3 rather than litres and corrected error with formula copying operator name"]
["2024-09-23","Operational Summary tab: table added on start-ups and shut-downs"]
["2024-09-23","Operational Summary tab: table added on dioxins and mercury protocols"]
["2024-09-23","Operational Summary tab: table added on AST, QAL 2 and calibration functions"]
["2024-09-23","CO2 N2O tab: various changes made to notes to reflect the fact that most plants should now have calibrated CEMS and flow meters + some have C14 samplers and more up to date industry data","Version 24a (for incinerators) - 23/09/24"]
["2024-11-08","CO2 N2O tab: Changed the N2O CO2 equivalence factor from 298 to 265 in line with recently updated government greenhouse gas figures: https://www.gov.uk/government/publications/greenhouse-gas-reporting-conversion-factors-2024"]
["2024-11-08","CO2 N2O tab: Added an additional requirement for municipal EfW plants to state the yearly average biogenic percentage of the waste by mass, and reference to a document which sets out a methodology for calculating NCV of waste from the results of C14 sampling."]
["2024-11-08","Permit Compliance tab: Two additional columns added + explanatory notes to the table entitled \"Summary of non-compliances under the permit\" to allow CCS scores to be stated where relevant. "]
["2024-11-08","Residue Quality tab: Note added explaining application of TOC and LOI limits and asking operators to report both metrics where measured. ","Version 24.1a (for incinerators) - 08/11/24"]
["2024-11-27","Operational Summary tab: table added on start-ups and shut-downs","Version 24.2a (for incinerators) - 27/11/24"]
["2025-11-27","Cover Page: Print as PDF and Print Report and pdf buttons deleted and blank columns removed; contents page deleted","Version 25.1a (for incinerators) - 27/11/25"]
["2025-11-27","Residue Quality tab renamed to \"Residues\", and Summary of residue handling table moved from Operational Summary tab to Residues tab."]
["2025-11-27","Various changes made to the Operational Data tab including\n•\tReformatting of the rows under the Operational data heading (Rows 3-8) to make it clearer what information is required. \n•\tAmendment of the rows under the Energy Usage / Export heading (Rows 26-32) to calculate an “indicative parasitic load” (now excluding energy imported)\n•\tAmendment of the unit for gas usage from cubic feet to cubic metres (Row 50) \n•\tSome amendments to the first 2 notes and other minor edits\n•\tDeleted \"Overall Availability, mean avg. of all lines, hrs\" row"]
["2025-11-27","Operational Summary tab: Note added requiring all emergency shut-downs be listed, irrespective of whether or not they were reportable. "]
["2025-11-27","CO2 N2O tab: Note added to ask operators to ensure that relevant data reported here matches that which will be submitted under the Pollution Inventory"]